{"text_format":"1","workbook":"xlsx","n_sheets":2,"sheets":["Capital Social Jun PT","Capital Social Jun ENG"],"not_rendered":{"charts":0,"images":1,"macros":1,"external_links":0,"defined_names":337,"comments":0,"pivot_tables":0},"unopened":[],"bounds":{"document_bytes":16777216,"sheet_cells":100000,"rows_first":2000,"rows_last":500,"rows_between":2000,"halvings":0,"cell_chars":16384,"cell_head_chars":4096},"cells_cut":0,"cells_raw":0,"read":"whole","date_system":"1900"}

{"sheet":"Capital Social Jun PT","index":0,"n_rows":84,"n_cols":15,"rows_kept":84,"cut":false,"hidden":false,"merged":[[7,6,7,7],[7,8,7,9],[7,11,7,13],[10,2,11,2],[10,3,11,3],[10,4,11,4],[7,2,8,2],[7,3,8,3],[7,4,8,4],[16,4,17,4],[16,2,17,2],[16,3,17,3],[13,2,14,2],[13,3,14,3],[13,4,14,4],[22,2,23,2],[22,3,23,3],[22,4,23,4],[19,2,20,2],[19,3,20,3],[19,4,20,4],[37,2,38,2],[37,3,38,3],[37,4,38,4],[28,2,29,2],[28,3,29,3],[28,4,29,4],[31,2,32,2],[31,3,32,3],[31,4,32,4],[46,2,47,2],[46,3,47,3],[46,4,47,4],[40,2,41,2],[40,3,41,3],[40,4,41,4],[43,2,44,2],[43,3,44,3],[43,4,44,4],[82,2,83,2],[82,3,83,3],[82,4,83,4],[61,2,62,2],[61,3,62,3],[61,4,62,4],[70,3,71,3],[67,3,68,3],[64,3,65,3],[64,2,65,2],[67,2,68,2],[70,2,71,2],[79,4,80,4],[73,2,74,2],[76,2,77,2],[79,2,80,2],[6,2,6,14],[58,2,59,2],[58,3,59,3],[58,4,59,4],[52,2,53,2],[52,3,53,3],[52,4,53,4],[55,2,56,2],[55,3,56,3],[55,4,56,4],[49,2,50,2],[49,3,50,3],[49,4,50,4],[25,2,26,2],[25,3,26,3],[34,3,35,3],[25,4,26,4],[79,3,80,3],[76,3,77,3],[73,3,74,3],[64,4,65,4],[67,4,68,4],[70,4,71,4],[73,4,74,4],[76,4,77,4],[34,4,35,4]]}
[]
[]
[]
[null,null,null,"CARTEIRA DE PARTICIPAÇÕES ACIONÁRIAS DA AXIA ENERGIA EM EMPRESAS DE ENERGIA ELÉTRICA SEM NEGOCIAÇÃO EM BOLSAS DE VALORES"]
[null,null,null,"Posição em","2026-07-31",6,7,8,9,10,11,12,13,14]
[]
[]
[null,null,"EMPRESA","RAZÃO SOCIAL","Tipo",null,"AÇÕES ORDINÁRIAS",null,"AÇÕES PREFERENCIAIS",null,"TOTAL","%  PARTICIPAÇÃO"]
[null,null,null,null,null,null,"QUANTIDADE","R$","QUANTIDADE","R$","QUANTIDADE","R$","ORD.","PREF.","TOTAL"]
[]
[null,null,"ELETRONUCLEAR","ELETROBRAS TERMONUCLEAR S.A. - ELETRONUCLEAR ","Investida G","Patrimônio Líquido",221412211140,5756933000.0130005,221412211139,5756932999.9869995,442824422279,11513866000]
[null,null,null,null,null,"PART.AXIA",79488849747,139100000,221396242535,395900000,300885092282,535000000,0.35900842748342737,0.99992787839515329,0.67946815293856666]
[]
[null,null,"ENEL GREEN POWER CACHOEIRA DOURADA S.A.","ENEL GREEN POWER CACHOEIRA DOURADA S.A.","Investida G","Patrimônio Líquido",1031120660,180950777.36904249,1894930206,332540222.63095748,2926050866,513491000]
[null,null,null,null,null,"PART.AXIA",3718774,652605.53130589356,1,0.17548943046979826,3718775,652605.70679532399,3.606536212745461E-3,5.2772392188042411E-10,1.2709194645968947E-3]
[]
[null,null,"CEB LAJEADO","CEB LAJEADO S.A.","Investida G","Patrimônio Líquido",82013911,234242734.64469454,54836102,156619265.35530543,136850013,390862000]
[null,null,null,null,null,"PART.AXIA",0,0,54835800,156618402.80278233,54835800,156618402.80278233,0,0.99999449267929363,0.40069999847204985]
[]
[null,null,"LAJEADO ENERGIA","LAJEADO ENERGIA S.A.","Investida G","Patrimônio Líquido",113690041,397853905.98642308,89827851,314349094.01357692,203517892,712203000]
[null,null,null,null,null,"PART.AXIA",0,0,81549616,285379730.46639061,81549616,285379730.46639061,0,0.90784333691785635,0.40069998366531823]
[]
[null,null,"PAULISTA LAJEADO","PAULISTA LAJEADO S.A.","Investida G","Patrimônio Líquido",31499174,88547774.050059378,21060769,59204225.949940622,52559943,147752000]
[null,null,null,null,null,"PART.AXIA",0,0,21060769,59204225.949940622,21060769,59204225.949940622,0,1,0.40069999695395409]
[null,null,null,null,null,null,null,null,0]
[null,null,"INVESTCO","INVESTCO S.A.","Investida P","CAP.SOCIAL",402202308,491903054.82568824,384203962,469890646.6343118,786406270,961793701.46000004]
[null,null,null,null,null,"PART.AXIA",0,0,1650406,2018486.0627469218,1650406,2018486.0627469218,4.1034224995049008E-3,4.2956506523480356E-3,0]
[]
[null,null,"CEB","COMPANHIA ENERGÉTICA DE BRASÍLIA - CEB","Investida D","CAP.SOCIAL",35920890,282069844.23814076,36161025,283955511.38185924,72081915,566025355.62]
[null,null,null,null,null,"PART.AXIA",0,0,1518330,11922730.940188183,1518330,11922730.940188183,0,4.1988024399197757E-2,2.1063952032905897E-2]
[null,null,null,null,null,null,"",null,""]
[null,null,"CEEE D","CIA ESTADUAL DE DISTRIBUIÇÃO DE ENERGIA ELETRICA","Investida D","CAP.SOCIAL",68090916,3377725001.8399649,164014,8136095.4000351522,68254930,3385861097.2399998]
[null,null,null,null,null,"PART.AXIA",3067033,152143555.32488698,87638,4347379.6667862544,3154671,156490934.99167323,4.5043203707231666E-2,0.53433243503603356,4.6218947114882399E-2]
[null,null,null,null,null,null,"",null,""]
[null,null,"CELESC","CENTRAIS ELÉTRICAS DE SANTA CATARINA S.A","Investida P","CAP.SOCIAL",15527137,998333197.09316623,23044454,1481666802.9068336,38571591,2480000000]
[null,null,null,null,null,"PART.AXIA",4233,272165.07610484614,4142774,266363902.90460145,4147007,266636067.9807063,2.7261947904497783E-4,0.17977314628500202,0.10751454354060738]
[null,null,null,null,null,null,"",null,""]
[null,null,"CELGPAR","COMPANHIA CELG DE PARTICIPAÇÕES","Investida P","CAP.SOCIAL",79676502,602350701.85000002,0,0,79676502,602350701.85000002]
[null,null,null,null,null,"PART.AXIA",22967,173629.46693353771,0,0,22967,173629.46693353771,2.8825311633284302E-4,0,2.8825311633284302E-4]
[null,null,null,null,null,null,"",null,""]
[null,null,"EQUATORIAL PARÁ DISTRIBUIDORA DE ENERGIA S.A.","EQUATORIAL PARÁ DISTRIBUIDORA DE ENERGIA S.A.","Investida D","CAP.SOCIAL",2204620569,1630313689.1069233,4453438,3293310.8930768385,2209074007,1633607000]
[null,null,null,null,null,"PART.AXIA",20664721,15281530.981613239,1195973,884420.28579398349,21860694,16165951.267407224,9.3733685018521657E-3,0.26855049963646066,9.8958631221629321E-3]
[null,null,null,null,null,null,"",null,""]
[null,null,"EQUATORIAL MARANHAO DISTRIBUIDORA DE ENERGIA S.A","EQUATORIAL MARANHAO DISTRIBUIDORA DE ENERGIA S.A. - CEMAR","Investida D","CAP.SOCIAL",161318939,1831086631.911659,2864960,32519368.08834099,164183899,1863606000]
[null,null,null,null,null,"PART.AXIA",53777259,610410784.16558981,1068456,12127748.363047464,54845715,622538532.52863729,0.33335986049350347,0.37293923824416397,0.33405050881390019]
[null,null,null,null,null,null,""]
[null,null,"AUREN ","AUREN ENERGIA S.A.","Investida G","CAP.SOCIAL",1050377632,6187772000,0,0,1050377632,6187772000]
[null,null,null,null,null,"PART.AXIA",415962,2450431.1004444542,0,0,415962,2450431.1004444542,3.9601186023732846E-4,0,3.9601186023732846E-4]
[null,null,null,null,null,null,"",null,""]
[null,null,"RIO PARANAPANEMA ENERGIA S.A.","RIO PARANAPANEMA ENERGIA S.A.","Investida G","CAP.SOCIAL",31477761,279712501.26666665,62955522,559425002.5333333,94433283,839137503.79999995]
[null,null,null,null,null,"PART.AXIA",0,0,441539,3923531.2224647338,441539,3923531.2224647338,0,7.0135070915621983E-3,4.6756713943747986E-3]
[null,null,null,null,null,null,"",null,""]
[null,null,"COELCE","CIA ENERGÉTICA DO CEARÁ - COELCE","Investida D","CAP.SOCIAL",53402024,1320156254.554369,32899995,813323745.44563091,86302019,2133480000]
[null,null,null,null,null,"PART.AXIA",27543,680892.98861015053,5503530,136053261.79448941,5531073,136734154.78309956,5.1576696793364987E-4,0.16728057253504142,6.4089728885717026E-2]
[]
[null,null,"ISA ENERGIA","ISA ENERGIA BRASIL S.A.","Investida T","CAP.SOCIAL",238170004,1215699482.7458189,465157744,2374320944.1941814,703327748,3590020426.9400001]
[null,null,null,null,null,"PART.AXIA",5340330,27258833.226924658,129694535,662004351.79259384,135034865,689263185.01951849,2.2422345006972415E-2,0.27881839370172884,0.19199422372284963]
[]
[null,null,"ENERGISA","ENERGISA S.A.","Investida P","CAP.SOCIAL",887231247,4215039339.5835671,1402193416,6661510660.4164333,2289424663,10876550000]
[null,null,null,null,null,"PART.AXIA",5182561,24621200.581759438,null,0,5182561,24621200.581759438,5.8412742084138977E-3,0,2.2636958025991178E-3]
[]
[null,null,"TAESA","TRANSMISSORA ALIANÇA DE ENERGIA ","Investida T","CAP.SOCIAL UNITS",590714069,1753306077.155822,442782652,1314228922.844178,1033496721,3067535000]
[null,null,null,null,null,"PART.AXIA",660000,1958954.5461170361,1320000,3917909.0922340718,1980000,5876863.6383511079,1.1172918246509548E-3,2.981146605535937E-3,1.9158261073960389E-3]
[]
[null,null,"ENGIE","ENGIE BRASIL ENERGIA S.A.","Investida T","CAP.SOCIAL UNITS",1142298836,6863706794.5200005,0,0,1142298836,6863706794.5200005]
[null,null,null,null,null,"PART.AXIA",326,1958.8292874821068,0,0,326,1958.8292874821068,2.853894180104023E-7,0,2.853894180104023E-7]
[]
[null,null,"AFLUENTE GERAÇÃO (NEOENERGIA)","AFLUENTE GERAÇÃO DE ENERGIA ELÉTRICA S.A.","Investida G","CAP.SOCIAL UNITS",328544000,33765982380.290268,1577000,162075564.34973016,330121000,33928057944.639999]
[null,null,null,null,null,"PART.AXIA",46,4727.6321877537021,36,3699.8860599811578,82,8427.5182477348608,1.4001168793221E-7,2.2828154724159797E-5,2.4839377076889991E-7]
[]
[null,null,"OI S.A.","OI S.A. – EM RECUPERAÇÃO JUDICIAL","Investida Telecom","CAP.SOCIAL UNITS",3261287392,60071415865.089996,0,0,3261287392,60071415865.089996]
[null,null,null,null,null,"PART.AXIA",240,4420.6897690118076,0,0,240,4420.6897690118076,7.3590570579190464E-8,0,7.3590570579190464E-8]
[]
[null,null,"TELEFÔNICA BRASIL S/A","TELEFÔNICA BRASIL S.A.","Investida Telecom","CAP.SOCIAL UNITS",251307343,21430204614.810001,0,0,251307343,21430204614.810001]
[null,null,null,null,null,"PART.AXIA",56,4775.393524531275,0,0,56,4775.393524531275,2.2283471438397247E-7,0,2.2283471438397247E-7]
[]
[null,null,"TIM PARTICIPAÇÕES","TIM PARTICIPAÇÕES S.A.","Investida Telecom","CAP.SOCIAL UNITS",203583506,22836339109,0,0,203583506,22836339109]
[null,null,null,null,null,"PART.AXIA",4,448.68741201460591,3,0,7,448.68741201460591,1.9647957138531644E-8,0,3.4383924992430382E-8]
[]
[null,null,"TELEBRAS","TELECOMUNICAÇÕES BRASILEIRAS S.A. – TELEBRAS","Investida Telecom","CAP.SOCIAL UNITS",75190021,2791180859.7107697,18407491,683317225.75923014,93597512,3474498085.4699998]
[null,null,null,null,null,"PART.AXIA",0,0,1,37.121692780359375,1,37.121692780359375,0,5.4325709027916951E-8,1.0684044678452565E-8]
[]
[null,null,"ALGAR TELECOM","ALGAR TELECOM S.A.","Investida Telecom","CAP.SOCIAL",295019806,901831185,0,0,295019806,901831185]
[null,null,null,null,null,"PART.AXIA",869600,2658236.4387969258,0,0,869600,2658236.4387969258,2.9475987113895667E-3,0,2.9475987113895667E-3]

{"sheet":"Capital Social Jun ENG","index":1,"n_rows":84,"n_cols":15,"rows_kept":84,"cut":false,"hidden":false,"merged":[[82,2,83,2],[82,3,83,3],[82,4,83,4],[61,2,62,2],[61,3,62,3],[61,4,62,4],[73,2,74,2],[76,2,77,2],[79,2,80,2],[79,3,80,3],[76,3,77,3],[73,3,74,3],[79,4,80,4],[70,2,71,2],[70,3,71,3],[70,4,71,4],[58,2,59,2],[58,3,59,3],[58,4,59,4],[52,2,53,2],[52,3,53,3],[52,4,53,4],[55,2,56,2],[55,3,56,3],[55,4,56,4],[49,2,50,2],[49,3,50,3],[49,4,50,4],[46,2,47,2],[46,3,47,3],[46,4,47,4],[40,2,41,2],[40,3,41,3],[40,4,41,4],[43,2,44,2],[43,3,44,3],[43,4,44,4],[34,3,35,3],[34,4,35,4],[37,2,38,2],[37,3,38,3],[37,4,38,4],[34,2,35,2],[16,3,17,3],[22,2,23,2],[22,3,23,3],[22,4,23,4],[19,2,20,2],[19,3,20,3],[19,4,20,4],[67,4,68,4],[6,2,6,14],[7,2,8,2],[7,3,8,3],[7,4,8,4],[13,2,14,2],[13,3,14,3],[13,4,14,4],[10,2,11,2],[10,3,11,3],[10,4,11,4],[7,6,7,7],[7,8,7,9],[7,11,7,13],[16,4,17,4],[16,2,17,2],[73,4,74,4],[76,4,77,4],[25,2,26,2],[25,3,26,3],[25,4,26,4],[64,2,65,2],[67,2,68,2],[67,3,68,3],[64,3,65,3],[28,2,29,2],[28,3,29,3],[28,4,29,4],[31,2,32,2],[31,3,32,3],[31,4,32,4],[64,4,65,4]]}
[]
[]
[]
[null,null,null,"AXIA ENERGIA’ PORTFOLIO OF SHAREHOLDINGS IN POWER COMPANIES NOT LISTED ON STOCK EXCHANGES"]
[null,null,null,"Position as of",{"$f":"TEXT('Capital Social Jun PT'!E5,\"mm/dd/aaaa\")","v":"07/31/2026"},6,7,8,9,10,11,12,13,14]
[]
[]
[null,null,"COMPANY","CORPORATE NAME","Type",null,"COMMON SHARES",null,"PREFERRED SHARES",null,"TOTAL","% SHAREHOLDING","% OF INTEREST"]
[null,null,null,null,null,null,"QUANTITY","R$","QUANTITY","R$","QUANTITY","R$","COM.","PREF.","TOTAL"]
[]
[null,null,"ELETRONUCLEAR","ELETROBRAS TERMONUCLEAR S.A. - ELETRONUCLEAR ","Affiliate G","CAPITAL",{"$f":"IF(FormatNumberUS('Capital Social Jun PT'!G11,0)=0,\" \",FormatNumberUS('Capital Social Jun PT'!G11,0))","v":"221,412,211,140"},{"$f":"IF(FormatNumberUS('Capital Social Jun PT'!H11,0)=0,\" \",FormatNumberUS('Capital Social Jun PT'!H11,0))","v":"5,756,933,000"},{"$f":"IF(FormatNumberUS('Capital Social Jun PT'!I11,0)=0,\" \",FormatNumberUS('Capital Social Jun PT'!I11,0))","v":"221,412,211,139"},{"$f":"IF(FormatNumberUS('Capital Social Jun PT'!J11,0)=0,\" \",FormatNumberUS('Capital Social Jun PT'!J11,0))","v":"5,756,933,000"},{"$f":"IF(FormatNumberUS('Capital Social Jun PT'!K11,0)=0,\" \",FormatNumberUS('Capital Social Jun PT'!K11,0))","v":"442,824,422,279"},{"$f":"IF(FormatNumberUS('Capital Social Jun PT'!L11,0)=0,\" \",FormatNumberUS('Capital Social Jun PT'!L11,0))","v":"11,513,866,000"},{"$f":"IF('Capital Social Jun PT'!M11=\"\",\"\",IFERROR(FormatNumberUS('Capital Social Jun PT'!M11*100,2)&\"%\",\"-\"))","v":""},{"$f":"IF('Capital Social Jun PT'!N11=\"\",\"\",IFERROR(FormatNumberUS('Capital Social Jun PT'!N11*100,2)&\"%\",\"-\"))","v":""},{"$f":"IF('Capital Social Jun PT'!O11=\"\",\"\",IFERROR(FormatNumberUS('Capital Social Jun PT'!O11*100,2)&\"%\",\"-\"))","v":""}]
[null,null,null,null,null,"SHR.AXIA ENERGIA",{"$f":"IF(FormatNumberUS('Capital Social Jun PT'!G12,0)=0,\" \",FormatNumberUS('Capital Social Jun PT'!G12,0))","v":"79,488,849,747"},{"$f":"IF(FormatNumberUS('Capital Social Jun PT'!H12,0)=0,\" \",FormatNumberUS('Capital Social Jun PT'!H12,0))","v":"139,100,000"},{"$f":"IF(FormatNumberUS('Capital Social Jun PT'!I12,0)=0,\" \",FormatNumberUS('Capital Social Jun PT'!I12,0))","v":"221,396,242,535"},{"$f":"IF(FormatNumberUS('Capital Social Jun PT'!J12,0)=0,\" \",FormatNumberUS('Capital Social Jun PT'!J12,0))","v":"395,900,000"},{"$f":"IF(FormatNumberUS('Capital Social Jun PT'!K12,0)=0,\" \",FormatNumberUS('Capital Social Jun PT'!K12,0))","v":"300,885,092,282"},{"$f":"IF(FormatNumberUS('Capital Social Jun PT'!L12,0)=0,\" \",FormatNumberUS('Capital Social Jun PT'!L12,0))","v":"535,000,000"},{"$f":"IF('Capital Social Jun PT'!M12=\"\",\"\",IFERROR(FormatNumberUS('Capital Social Jun PT'!M12*100,2)&\"%\",\"-\"))","v":"35.90%"},{"$f":"IF('Capital Social Jun PT'!N12=\"\",\"\",IFERROR(FormatNumberUS('Capital Social Jun PT'!N12*100,2)&\"%\",\"-\"))","v":"99.99%"},{"$f":"IF('Capital Social Jun PT'!O12=\"\",\"\",IFERROR(FormatNumberUS('Capital Social Jun PT'!O12*100,2)&\"%\",\"-\"))","v":"67.95%"}]
[null,null,null,null,null,null,{"$f":"IF(FormatNumberUS('Capital Social Jun PT'!G13,0)=0,\" \",FormatNumberUS('Capital Social Jun PT'!G13,0))","v":"0"},{"$f":"IF(FormatNumberUS('Capital Social Jun PT'!H13,0)=0,\" \",FormatNumberUS('Capital Social Jun PT'!H13,0))","v":"0"},{"$f":"IF(FormatNumberUS('Capital Social Jun PT'!I13,0)=0,\" \",FormatNumberUS('Capital Social Jun PT'!I13,0))","v":"0"},{"$f":"IF(FormatNumberUS('Capital Social Jun PT'!J13,0)=0,\" \",FormatNumberUS('Capital Social Jun PT'!J13,0))","v":"0"},{"$f":"IF(FormatNumberUS('Capital Social Jun PT'!K13,0)=0,\" \",FormatNumberUS('Capital Social Jun PT'!K13,0))","v":"0"},{"$f":"IF(FormatNumberUS('Capital Social Jun PT'!L13,0)=0,\" \",FormatNumberUS('Capital Social Jun PT'!L13,0))","v":"0"}]
[null,null,"ENEL GREEN POWER CACHOEIRA DOURADA S.A.","ENEL GREEN POWER CACHOEIRA DOURADA S.A.","Affiliate G","CAPITAL",{"$f":"IF(FormatNumberUS('Capital Social Jun PT'!G14,0)=0,\" \",FormatNumberUS('Capital Social Jun PT'!G14,0))","v":"1,031,120,660"},{"$f":"IF(FormatNumberUS('Capital Social Jun PT'!H14,0)=0,\" \",FormatNumberUS('Capital Social Jun PT'!H14,0))","v":"180,950,777"},{"$f":"IF(FormatNumberUS('Capital Social Jun PT'!I14,0)=0,\" \",FormatNumberUS('Capital Social Jun PT'!I14,0))","v":"1,894,930,206"},{"$f":"IF(FormatNumberUS('Capital Social Jun PT'!J14,0)=0,\" \",FormatNumberUS('Capital Social Jun PT'!J14,0))","v":"332,540,223"},{"$f":"IF(FormatNumberUS('Capital Social Jun PT'!K14,0)=0,\" \",FormatNumberUS('Capital Social Jun PT'!K14,0))","v":"2,926,050,866"},{"$f":"IF(FormatNumberUS('Capital Social Jun PT'!L14,0)=0,\" \",FormatNumberUS('Capital Social Jun PT'!L14,0))","v":"513,491,000"},{"$f":"IF('Capital Social Jun PT'!M14=\"\",\"\",IFERROR(FormatNumberUS('Capital Social Jun PT'!M14*100,2)&\"%\",\"-\"))","v":""},{"$f":"IF('Capital Social Jun PT'!N14=\"\",\"\",IFERROR(FormatNumberUS('Capital Social Jun PT'!N14*100,2)&\"%\",\"-\"))","v":""},{"$f":"IF('Capital Social Jun PT'!O14=\"\",\"\",IFERROR(FormatNumberUS('Capital Social Jun PT'!O14*100,2)&\"%\",\"-\"))","v":""}]
[null,null,null,null,null,"SHR.AXIA ENERGIA",{"$f":"IF(FormatNumberUS('Capital Social Jun PT'!G15,0)=0,\" \",FormatNumberUS('Capital Social Jun PT'!G15,0))","v":"3,718,774"},{"$f":"IF(FormatNumberUS('Capital Social Jun PT'!H15,0)=0,\" \",FormatNumberUS('Capital Social Jun PT'!H15,0))","v":"652,606"},{"$f":"IF(FormatNumberUS('Capital Social Jun PT'!I15,0)=0,\" \",FormatNumberUS('Capital Social Jun PT'!I15,0))","v":"1"},{"$f":"IF(FormatNumberUS('Capital Social Jun PT'!J15,0)=0,\" \",FormatNumberUS('Capital Social Jun PT'!J15,0))","v":"0"},{"$f":"IF(FormatNumberUS('Capital Social Jun PT'!K15,0)=0,\" \",FormatNumberUS('Capital Social Jun PT'!K15,0))","v":"3,718,775"},{"$f":"IF(FormatNumberUS('Capital Social Jun PT'!L15,0)=0,\" \",FormatNumberUS('Capital Social Jun PT'!L15,0))","v":"652,606"},{"$f":"IF('Capital Social Jun PT'!M15=\"\",\"\",IFERROR(FormatNumberUS('Capital Social Jun PT'!M15*100,2)&\"%\",\"-\"))","v":"0.36%"},{"$f":"IF('Capital Social Jun PT'!N15=\"\",\"\",IFERROR(FormatNumberUS('Capital Social Jun PT'!N15*100,2)&\"%\",\"-\"))","v":"0.00%"},{"$f":"IF('Capital Social Jun PT'!O15=\"\",\"\",IFERROR(FormatNumberUS('Capital Social Jun PT'!O15*100,2)&\"%\",\"-\"))","v":"0.13%"}]
[null,null,null,null,null,null,{"$f":"IF(FormatNumberUS('Capital Social Jun PT'!G16,0)=0,\" \",FormatNumberUS('Capital Social Jun PT'!G16,0))","v":"0"},{"$f":"IF(FormatNumberUS('Capital Social Jun PT'!H16,0)=0,\" \",FormatNumberUS('Capital Social Jun PT'!H16,0))","v":"0"},{"$f":"IF(FormatNumberUS('Capital Social Jun PT'!I16,0)=0,\" \",FormatNumberUS('Capital Social Jun PT'!I16,0))","v":"0"},{"$f":"IF(FormatNumberUS('Capital Social Jun PT'!J16,0)=0,\" \",FormatNumberUS('Capital Social Jun PT'!J16,0))","v":"0"},{"$f":"IF(FormatNumberUS('Capital Social Jun PT'!K16,0)=0,\" \",FormatNumberUS('Capital Social Jun PT'!K16,0))","v":"0"},{"$f":"IF(FormatNumberUS('Capital Social Jun PT'!L16,0)=0,\" \",FormatNumberUS('Capital Social Jun PT'!L16,0))","v":"0"},{"$f":"IF('Capital Social Jun PT'!M16=\"\",\"\",IFERROR(FormatNumberUS('Capital Social Jun PT'!M16*100,2)&\"%\",\"-\"))","v":""},{"$f":"IF('Capital Social Jun PT'!N16=\"\",\"\",IFERROR(FormatNumberUS('Capital Social Jun PT'!N16*100,2)&\"%\",\"-\"))","v":""},{"$f":"IF('Capital Social Jun PT'!O16=\"\",\"\",IFERROR(FormatNumberUS('Capital Social Jun PT'!O16*100,2)&\"%\",\"-\"))","v":""}]
[null,null,"CEB LAJEADO","CEB LAJEADO S.A.","Affiliate G","CAPITAL",{"$f":"IF(FormatNumberUS('Capital Social Jun PT'!G17,0)=0,\" \",FormatNumberUS('Capital Social Jun PT'!G17,0))","v":"82,013,911"},{"$f":"IF(FormatNumberUS('Capital Social Jun PT'!H17,0)=0,\" \",FormatNumberUS('Capital Social Jun PT'!H17,0))","v":"234,242,735"},{"$f":"IF(FormatNumberUS('Capital Social Jun PT'!I17,0)=0,\" \",FormatNumberUS('Capital Social Jun PT'!I17,0))","v":"54,836,102"},{"$f":"IF(FormatNumberUS('Capital Social Jun PT'!J17,0)=0,\" \",FormatNumberUS('Capital Social Jun PT'!J17,0))","v":"156,619,265"},{"$f":"IF(FormatNumberUS('Capital Social Jun PT'!K17,0)=0,\" \",FormatNumberUS('Capital Social Jun PT'!K17,0))","v":"136,850,013"},{"$f":"IF(FormatNumberUS('Capital Social Jun PT'!L17,0)=0,\" \",FormatNumberUS('Capital Social Jun PT'!L17,0))","v":"390,862,000"},{"$f":"IF('Capital Social Jun PT'!M17=\"\",\"\",IFERROR(FormatNumberUS('Capital Social Jun PT'!M17*100,2)&\"%\",\"-\"))","v":""},{"$f":"IF('Capital Social Jun PT'!N17=\"\",\"\",IFERROR(FormatNumberUS('Capital Social Jun PT'!N17*100,2)&\"%\",\"-\"))","v":""},{"$f":"IF('Capital Social Jun PT'!O17=\"\",\"\",IFERROR(FormatNumberUS('Capital Social Jun PT'!O17*100,2)&\"%\",\"-\"))","v":""}]
[null,null,null,null,null,"SHR.AXIA ENERGIA",{"$f":"IF(FormatNumberUS('Capital Social Jun PT'!G18,0)=0,\" \",FormatNumberUS('Capital Social Jun PT'!G18,0))","v":"0"},{"$f":"IF(FormatNumberUS('Capital Social Jun PT'!H18,0)=0,\" \",FormatNumberUS('Capital Social Jun PT'!H18,0))","v":"0"},{"$f":"IF(FormatNumberUS('Capital Social Jun PT'!I18,0)=0,\" \",FormatNumberUS('Capital Social Jun PT'!I18,0))","v":"54,835,800"},{"$f":"IF(FormatNumberUS('Capital Social Jun PT'!J18,0)=0,\" \",FormatNumberUS('Capital Social Jun PT'!J18,0))","v":"156,618,403"},{"$f":"IF(FormatNumberUS('Capital Social Jun PT'!K18,0)=0,\" \",FormatNumberUS('Capital Social Jun PT'!K18,0))","v":"54,835,800"},{"$f":"IF(FormatNumberUS('Capital Social Jun PT'!L18,0)=0,\" \",FormatNumberUS('Capital Social Jun PT'!L18,0))","v":"156,618,403"},{"$f":"IF('Capital Social Jun PT'!M18=\"\",\"\",IFERROR(FormatNumberUS('Capital Social Jun PT'!M18*100,2)&\"%\",\"-\"))","v":"0.00%"},{"$f":"IF('Capital Social Jun PT'!N18=\"\",\"\",IFERROR(FormatNumberUS('Capital Social Jun PT'!N18*100,2)&\"%\",\"-\"))","v":"100.00%"},{"$f":"IF('Capital Social Jun PT'!O18=\"\",\"\",IFERROR(FormatNumberUS('Capital Social Jun PT'!O18*100,2)&\"%\",\"-\"))","v":"40.07%"}]
[null,null,null,null,null,null,{"$f":"IF(FormatNumberUS('Capital Social Jun PT'!G19,0)=0,\" \",FormatNumberUS('Capital Social Jun PT'!G19,0))","v":"0"},{"$f":"IF(FormatNumberUS('Capital Social Jun PT'!H19,0)=0,\" \",FormatNumberUS('Capital Social Jun PT'!H19,0))","v":"0"},{"$f":"IF(FormatNumberUS('Capital Social Jun PT'!I19,0)=0,\" \",FormatNumberUS('Capital Social Jun PT'!I19,0))","v":"0"},{"$f":"IF(FormatNumberUS('Capital Social Jun PT'!J19,0)=0,\" \",FormatNumberUS('Capital Social Jun PT'!J19,0))","v":"0"},{"$f":"IF(FormatNumberUS('Capital Social Jun PT'!K19,0)=0,\" \",FormatNumberUS('Capital Social Jun PT'!K19,0))","v":"0"},{"$f":"IF(FormatNumberUS('Capital Social Jun PT'!L19,0)=0,\" \",FormatNumberUS('Capital Social Jun PT'!L19,0))","v":"0"},{"$f":"IF('Capital Social Jun PT'!M19=\"\",\"\",IFERROR(FormatNumberUS('Capital Social Jun PT'!M19*100,2)&\"%\",\"-\"))","v":""},{"$f":"IF('Capital Social Jun PT'!N19=\"\",\"\",IFERROR(FormatNumberUS('Capital Social Jun PT'!N19*100,2)&\"%\",\"-\"))","v":""},{"$f":"IF('Capital Social Jun PT'!O19=\"\",\"\",IFERROR(FormatNumberUS('Capital Social Jun PT'!O19*100,2)&\"%\",\"-\"))","v":""}]
[null,null,"LAJEADO ENERGIA","LAJEADO ENERGIA S.A.","Affiliate G","CAPITAL",{"$f":"IF(FormatNumberUS('Capital Social Jun PT'!G20,0)=0,\" \",FormatNumberUS('Capital Social Jun PT'!G20,0))","v":"113,690,041"},{"$f":"IF(FormatNumberUS('Capital Social Jun PT'!H20,0)=0,\" \",FormatNumberUS('Capital Social Jun PT'!H20,0))","v":"397,853,906"},{"$f":"IF(FormatNumberUS('Capital Social Jun PT'!I20,0)=0,\" \",FormatNumberUS('Capital Social Jun PT'!I20,0))","v":"89,827,851"},{"$f":"IF(FormatNumberUS('Capital Social Jun PT'!J20,0)=0,\" \",FormatNumberUS('Capital Social Jun PT'!J20,0))","v":"314,349,094"},{"$f":"IF(FormatNumberUS('Capital Social Jun PT'!K20,0)=0,\" \",FormatNumberUS('Capital Social Jun PT'!K20,0))","v":"203,517,892"},{"$f":"IF(FormatNumberUS('Capital Social Jun PT'!L20,0)=0,\" \",FormatNumberUS('Capital Social Jun PT'!L20,0))","v":"712,203,000"},{"$f":"IF('Capital Social Jun PT'!M20=\"\",\"\",IFERROR(FormatNumberUS('Capital Social Jun PT'!M20*100,2)&\"%\",\"-\"))","v":""},{"$f":"IF('Capital Social Jun PT'!N20=\"\",\"\",IFERROR(FormatNumberUS('Capital Social Jun PT'!N20*100,2)&\"%\",\"-\"))","v":""},{"$f":"IF('Capital Social Jun PT'!O20=\"\",\"\",IFERROR(FormatNumberUS('Capital Social Jun PT'!O20*100,2)&\"%\",\"-\"))","v":""}]
[null,null,null,null,null,"SHR.AXIA ENERGIA",{"$f":"IF(FormatNumberUS('Capital Social Jun PT'!G21,0)=0,\" \",FormatNumberUS('Capital Social Jun PT'!G21,0))","v":"0"},{"$f":"IF(FormatNumberUS('Capital Social Jun PT'!H21,0)=0,\" \",FormatNumberUS('Capital Social Jun PT'!H21,0))","v":"0"},{"$f":"IF(FormatNumberUS('Capital Social Jun PT'!I21,0)=0,\" \",FormatNumberUS('Capital Social Jun PT'!I21,0))","v":"81,549,616"},{"$f":"IF(FormatNumberUS('Capital Social Jun PT'!J21,0)=0,\" \",FormatNumberUS('Capital Social Jun PT'!J21,0))","v":"285,379,730"},{"$f":"IF(FormatNumberUS('Capital Social Jun PT'!K21,0)=0,\" \",FormatNumberUS('Capital Social Jun PT'!K21,0))","v":"81,549,616"},{"$f":"IF(FormatNumberUS('Capital Social Jun PT'!L21,0)=0,\" \",FormatNumberUS('Capital Social Jun PT'!L21,0))","v":"285,379,730"},{"$f":"IF('Capital Social Jun PT'!M21=\"\",\"\",IFERROR(FormatNumberUS('Capital Social Jun PT'!M21*100,2)&\"%\",\"-\"))","v":"0.00%"},{"$f":"IF('Capital Social Jun PT'!N21=\"\",\"\",IFERROR(FormatNumberUS('Capital Social Jun PT'!N21*100,2)&\"%\",\"-\"))","v":"90.78%"},{"$f":"IF('Capital Social Jun PT'!O21=\"\",\"\",IFERROR(FormatNumberUS('Capital Social Jun PT'!O21*100,2)&\"%\",\"-\"))","v":"40.07%"}]
[null,null,null,null,null,null,{"$f":"IF(FormatNumberUS('Capital Social Jun PT'!G22,0)=0,\" \",FormatNumberUS('Capital Social Jun PT'!G22,0))","v":"0"},{"$f":"IF(FormatNumberUS('Capital Social Jun PT'!H22,0)=0,\" \",FormatNumberUS('Capital Social Jun PT'!H22,0))","v":"0"},{"$f":"IF(FormatNumberUS('Capital Social Jun PT'!I22,0)=0,\" \",FormatNumberUS('Capital Social Jun PT'!I22,0))","v":"0"},{"$f":"IF(FormatNumberUS('Capital Social Jun PT'!J22,0)=0,\" \",FormatNumberUS('Capital Social Jun PT'!J22,0))","v":"0"},{"$f":"IF(FormatNumberUS('Capital Social Jun PT'!K22,0)=0,\" \",FormatNumberUS('Capital Social Jun PT'!K22,0))","v":"0"},{"$f":"IF(FormatNumberUS('Capital Social Jun PT'!L22,0)=0,\" \",FormatNumberUS('Capital Social Jun PT'!L22,0))","v":"0"},{"$f":"IF('Capital Social Jun PT'!M22=\"\",\"\",IFERROR(FormatNumberUS('Capital Social Jun PT'!M22*100,2)&\"%\",\"-\"))","v":""},{"$f":"IF('Capital Social Jun PT'!N22=\"\",\"\",IFERROR(FormatNumberUS('Capital Social Jun PT'!N22*100,2)&\"%\",\"-\"))","v":""},{"$f":"IF('Capital Social Jun PT'!O22=\"\",\"\",IFERROR(FormatNumberUS('Capital Social Jun PT'!O22*100,2)&\"%\",\"-\"))","v":""}]
[null,null,"PAULISTA LAJEADO","PAULISTA LAJEADO S.A.","Affiliate G","CAPITAL",{"$f":"IF(FormatNumberUS('Capital Social Jun PT'!G23,0)=0,\" \",FormatNumberUS('Capital Social Jun PT'!G23,0))","v":"31,499,174"},{"$f":"IF(FormatNumberUS('Capital Social Jun PT'!H23,0)=0,\" \",FormatNumberUS('Capital Social Jun PT'!H23,0))","v":"88,547,774"},{"$f":"IF(FormatNumberUS('Capital Social Jun PT'!I23,0)=0,\" \",FormatNumberUS('Capital Social Jun PT'!I23,0))","v":"21,060,769"},{"$f":"IF(FormatNumberUS('Capital Social Jun PT'!J23,0)=0,\" \",FormatNumberUS('Capital Social Jun PT'!J23,0))","v":"59,204,226"},{"$f":"IF(FormatNumberUS('Capital Social Jun PT'!K23,0)=0,\" \",FormatNumberUS('Capital Social Jun PT'!K23,0))","v":"52,559,943"},{"$f":"IF(FormatNumberUS('Capital Social Jun PT'!L23,0)=0,\" \",FormatNumberUS('Capital Social Jun PT'!L23,0))","v":"147,752,000"},{"$f":"IF('Capital Social Jun PT'!M23=\"\",\"\",IFERROR(FormatNumberUS('Capital Social Jun PT'!M23*100,2)&\"%\",\"-\"))","v":""},{"$f":"IF('Capital Social Jun PT'!N23=\"\",\"\",IFERROR(FormatNumberUS('Capital Social Jun PT'!N23*100,2)&\"%\",\"-\"))","v":""},{"$f":"IF('Capital Social Jun PT'!O23=\"\",\"\",IFERROR(FormatNumberUS('Capital Social Jun PT'!O23*100,2)&\"%\",\"-\"))","v":""}]
[null,null,null,null,null,"SHR.AXIA ENERGIA",{"$f":"IF(FormatNumberUS('Capital Social Jun PT'!G24,0)=0,\" \",FormatNumberUS('Capital Social Jun PT'!G24,0))","v":"0"},{"$f":"IF(FormatNumberUS('Capital Social Jun PT'!H24,0)=0,\" \",FormatNumberUS('Capital Social Jun PT'!H24,0))","v":"0"},{"$f":"IF(FormatNumberUS('Capital Social Jun PT'!I24,0)=0,\" \",FormatNumberUS('Capital Social Jun PT'!I24,0))","v":"21,060,769"},{"$f":"IF(FormatNumberUS('Capital Social Jun PT'!J24,0)=0,\" \",FormatNumberUS('Capital Social Jun PT'!J24,0))","v":"59,204,226"},{"$f":"IF(FormatNumberUS('Capital Social Jun PT'!K24,0)=0,\" \",FormatNumberUS('Capital Social Jun PT'!K24,0))","v":"21,060,769"},{"$f":"IF(FormatNumberUS('Capital Social Jun PT'!L24,0)=0,\" \",FormatNumberUS('Capital Social Jun PT'!L24,0))","v":"59,204,226"},{"$f":"IF('Capital Social Jun PT'!M24=\"\",\"\",IFERROR(FormatNumberUS('Capital Social Jun PT'!M24*100,2)&\"%\",\"-\"))","v":"0.00%"},{"$f":"IF('Capital Social Jun PT'!N24=\"\",\"\",IFERROR(FormatNumberUS('Capital Social Jun PT'!N24*100,2)&\"%\",\"-\"))","v":"100.00%"},{"$f":"IF('Capital Social Jun PT'!O24=\"\",\"\",IFERROR(FormatNumberUS('Capital Social Jun PT'!O24*100,2)&\"%\",\"-\"))","v":"40.07%"}]
[]
[null,null,"INVESTCO","INVESTCO S.A.","Affiliate P","CAP.SOCIAL",402202308,411435257.87424356,384203962,393023742.12575644,786406270,804459000]
[null,null,null,null,null,"PART.AXIA",0,0,1650406,1688292.6942507718,1650406,1688292.6942507718,4.1034224995049008E-3,4.2956506523480356E-3,0]
[]
[null,null,"CEB","COMPANHIA ENERGÉTICA DE BRASÍLIA - CEB","Affiliate D","CAPITAL",{"$f":"IF(FormatNumberUS('Capital Social Jun PT'!G29,0)=0,\" \",FormatNumberUS('Capital Social Jun PT'!G29,0))","v":"35,920,890"},{"$f":"IF(FormatNumberUS('Capital Social Jun PT'!H29,0)=0,\" \",FormatNumberUS('Capital Social Jun PT'!H29,0))","v":"282,069,844"},{"$f":"IF(FormatNumberUS('Capital Social Jun PT'!I29,0)=0,\" \",FormatNumberUS('Capital Social Jun PT'!I29,0))","v":"36,161,025"},{"$f":"IF(FormatNumberUS('Capital Social Jun PT'!J29,0)=0,\" \",FormatNumberUS('Capital Social Jun PT'!J29,0))","v":"283,955,511"},{"$f":"IF(FormatNumberUS('Capital Social Jun PT'!K29,0)=0,\" \",FormatNumberUS('Capital Social Jun PT'!K29,0))","v":"72,081,915"},{"$f":"IF(FormatNumberUS('Capital Social Jun PT'!L29,0)=0,\" \",FormatNumberUS('Capital Social Jun PT'!L29,0))","v":"566,025,356"},{"$f":"IF('Capital Social Jun PT'!M29=\"\",\"\",IFERROR(FormatNumberUS('Capital Social Jun PT'!M29*100,2)&\"%\",\"-\"))","v":""},{"$f":"IF('Capital Social Jun PT'!N29=\"\",\"\",IFERROR(FormatNumberUS('Capital Social Jun PT'!N29*100,2)&\"%\",\"-\"))","v":""},{"$f":"IF('Capital Social Jun PT'!O29=\"\",\"\",IFERROR(FormatNumberUS('Capital Social Jun PT'!O29*100,2)&\"%\",\"-\"))","v":""}]
[null,null,null,null,null,"SHR.AXIA ENERGIA",{"$f":"IF(FormatNumberUS('Capital Social Jun PT'!G30,0)=0,\" \",FormatNumberUS('Capital Social Jun PT'!G30,0))","v":"0"},{"$f":"IF(FormatNumberUS('Capital Social Jun PT'!H30,0)=0,\" \",FormatNumberUS('Capital Social Jun PT'!H30,0))","v":"0"},{"$f":"IF(FormatNumberUS('Capital Social Jun PT'!I30,0)=0,\" \",FormatNumberUS('Capital Social Jun PT'!I30,0))","v":"1,518,330"},{"$f":"IF(FormatNumberUS('Capital Social Jun PT'!J30,0)=0,\" \",FormatNumberUS('Capital Social Jun PT'!J30,0))","v":"11,922,731"},{"$f":"IF(FormatNumberUS('Capital Social Jun PT'!K30,0)=0,\" \",FormatNumberUS('Capital Social Jun PT'!K30,0))","v":"1,518,330"},{"$f":"IF(FormatNumberUS('Capital Social Jun PT'!L30,0)=0,\" \",FormatNumberUS('Capital Social Jun PT'!L30,0))","v":"11,922,731"},{"$f":"IF('Capital Social Jun PT'!M30=\"\",\"\",IFERROR(FormatNumberUS('Capital Social Jun PT'!M30*100,2)&\"%\",\"-\"))","v":"0.00%"},{"$f":"IF('Capital Social Jun PT'!N30=\"\",\"\",IFERROR(FormatNumberUS('Capital Social Jun PT'!N30*100,2)&\"%\",\"-\"))","v":"4.20%"},{"$f":"IF('Capital Social Jun PT'!O30=\"\",\"\",IFERROR(FormatNumberUS('Capital Social Jun PT'!O30*100,2)&\"%\",\"-\"))","v":"2.11%"}]
[]
[null,null,"CEEE D","CIA ESTADUAL DE DISTRIBUIÇÃO DE ENERGIA ELETRICA","Affiliate D","CAPITAL",{"$f":"IF(FormatNumberUS('Capital Social Jun PT'!G32,0)=0,\" \",FormatNumberUS('Capital Social Jun PT'!G32,0))","v":"68,090,916"},{"$f":"IF(FormatNumberUS('Capital Social Jun PT'!H32,0)=0,\" \",FormatNumberUS('Capital Social Jun PT'!H32,0))","v":"3,377,725,002"},{"$f":"IF(FormatNumberUS('Capital Social Jun PT'!I32,0)=0,\" \",FormatNumberUS('Capital Social Jun PT'!I32,0))","v":"164,014"},{"$f":"IF(FormatNumberUS('Capital Social Jun PT'!J32,0)=0,\" \",FormatNumberUS('Capital Social Jun PT'!J32,0))","v":"8,136,095"},{"$f":"IF(FormatNumberUS('Capital Social Jun PT'!K32,0)=0,\" \",FormatNumberUS('Capital Social Jun PT'!K32,0))","v":"68,254,930"},{"$f":"IF(FormatNumberUS('Capital Social Jun PT'!L32,0)=0,\" \",FormatNumberUS('Capital Social Jun PT'!L32,0))","v":"3,385,861,097"},{"$f":"IF('Capital Social Jun PT'!M32=\"\",\"\",IFERROR(FormatNumberUS('Capital Social Jun PT'!M32*100,2)&\"%\",\"-\"))","v":""},{"$f":"IF('Capital Social Jun PT'!N32=\"\",\"\",IFERROR(FormatNumberUS('Capital Social Jun PT'!N32*100,2)&\"%\",\"-\"))","v":""},{"$f":"IF('Capital Social Jun PT'!O32=\"\",\"\",IFERROR(FormatNumberUS('Capital Social Jun PT'!O32*100,2)&\"%\",\"-\"))","v":""}]
[null,null,null,null,null,"SHR.AXIA ENERGIA",{"$f":"IF(FormatNumberUS('Capital Social Jun PT'!G33,0)=0,\" \",FormatNumberUS('Capital Social Jun PT'!G33,0))","v":"3,067,033"},{"$f":"IF(FormatNumberUS('Capital Social Jun PT'!H33,0)=0,\" \",FormatNumberUS('Capital Social Jun PT'!H33,0))","v":"152,143,555"},{"$f":"IF(FormatNumberUS('Capital Social Jun PT'!I33,0)=0,\" \",FormatNumberUS('Capital Social Jun PT'!I33,0))","v":"87,638"},{"$f":"IF(FormatNumberUS('Capital Social Jun PT'!J33,0)=0,\" \",FormatNumberUS('Capital Social Jun PT'!J33,0))","v":"4,347,380"},{"$f":"IF(FormatNumberUS('Capital Social Jun PT'!K33,0)=0,\" \",FormatNumberUS('Capital Social Jun PT'!K33,0))","v":"3,154,671"},{"$f":"IF(FormatNumberUS('Capital Social Jun PT'!L33,0)=0,\" \",FormatNumberUS('Capital Social Jun PT'!L33,0))","v":"156,490,935"},{"$f":"IF('Capital Social Jun PT'!M33=\"\",\"\",IFERROR(FormatNumberUS('Capital Social Jun PT'!M33*100,2)&\"%\",\"-\"))","v":"4.50%"},{"$f":"IF('Capital Social Jun PT'!N33=\"\",\"\",IFERROR(FormatNumberUS('Capital Social Jun PT'!N33*100,2)&\"%\",\"-\"))","v":"53.43%"},{"$f":"IF('Capital Social Jun PT'!O33=\"\",\"\",IFERROR(FormatNumberUS('Capital Social Jun PT'!O33*100,2)&\"%\",\"-\"))","v":"4.62%"}]
[]
[null,null,"CELESC","CENTRAIS ELÉTRICAS DE SANTA CATARINA S.A","Affiliate P","CAPITAL",{"$f":"IF(FormatNumberUS('Capital Social Jun PT'!G35,0)=0,\" \",FormatNumberUS('Capital Social Jun PT'!G35,0))","v":"15,527,137"},{"$f":"IF(FormatNumberUS('Capital Social Jun PT'!H35,0)=0,\" \",FormatNumberUS('Capital Social Jun PT'!H35,0))","v":"998,333,197"},{"$f":"IF(FormatNumberUS('Capital Social Jun PT'!I35,0)=0,\" \",FormatNumberUS('Capital Social Jun PT'!I35,0))","v":"23,044,454"},{"$f":"IF(FormatNumberUS('Capital Social Jun PT'!J35,0)=0,\" \",FormatNumberUS('Capital Social Jun PT'!J35,0))","v":"1,481,666,803"},{"$f":"IF(FormatNumberUS('Capital Social Jun PT'!K35,0)=0,\" \",FormatNumberUS('Capital Social Jun PT'!K35,0))","v":"38,571,591"},{"$f":"IF(FormatNumberUS('Capital Social Jun PT'!L35,0)=0,\" \",FormatNumberUS('Capital Social Jun PT'!L35,0))","v":"2,480,000,000"},{"$f":"IF('Capital Social Jun PT'!M35=\"\",\"\",IFERROR(FormatNumberUS('Capital Social Jun PT'!M35*100,2)&\"%\",\"-\"))","v":""},{"$f":"IF('Capital Social Jun PT'!N35=\"\",\"\",IFERROR(FormatNumberUS('Capital Social Jun PT'!N35*100,2)&\"%\",\"-\"))","v":""},{"$f":"IF('Capital Social Jun PT'!O35=\"\",\"\",IFERROR(FormatNumberUS('Capital Social Jun PT'!O35*100,2)&\"%\",\"-\"))","v":""}]
[null,null,null,null,null,"SHR.AXIA ENERGIA",{"$f":"IF(FormatNumberUS('Capital Social Jun PT'!G36,0)=0,\" \",FormatNumberUS('Capital Social Jun PT'!G36,0))","v":"4,233"},{"$f":"IF(FormatNumberUS('Capital Social Jun PT'!H36,0)=0,\" \",FormatNumberUS('Capital Social Jun PT'!H36,0))","v":"272,165"},{"$f":"IF(FormatNumberUS('Capital Social Jun PT'!I36,0)=0,\" \",FormatNumberUS('Capital Social Jun PT'!I36,0))","v":"4,142,774"},{"$f":"IF(FormatNumberUS('Capital Social Jun PT'!J36,0)=0,\" \",FormatNumberUS('Capital Social Jun PT'!J36,0))","v":"266,363,903"},{"$f":"IF(FormatNumberUS('Capital Social Jun PT'!K36,0)=0,\" \",FormatNumberUS('Capital Social Jun PT'!K36,0))","v":"4,147,007"},{"$f":"IF(FormatNumberUS('Capital Social Jun PT'!L36,0)=0,\" \",FormatNumberUS('Capital Social Jun PT'!L36,0))","v":"266,636,068"},{"$f":"IF('Capital Social Jun PT'!M36=\"\",\"\",IFERROR(FormatNumberUS('Capital Social Jun PT'!M36*100,2)&\"%\",\"-\"))","v":"0.03%"},{"$f":"IF('Capital Social Jun PT'!N36=\"\",\"\",IFERROR(FormatNumberUS('Capital Social Jun PT'!N36*100,2)&\"%\",\"-\"))","v":"17.98%"},{"$f":"IF('Capital Social Jun PT'!O36=\"\",\"\",IFERROR(FormatNumberUS('Capital Social Jun PT'!O36*100,2)&\"%\",\"-\"))","v":"10.75%"}]
[]
[null,null,"CELGPAR","COMPANHIA CELG DE PARTICIPAÇÕES","Affiliate P","CAPITAL",{"$f":"IF(FormatNumberUS('Capital Social Jun PT'!G38,0)=0,\" \",FormatNumberUS('Capital Social Jun PT'!G38,0))","v":"79,676,502"},{"$f":"IF(FormatNumberUS('Capital Social Jun PT'!H38,0)=0,\" \",FormatNumberUS('Capital Social Jun PT'!H38,0))","v":"602,350,702"},{"$f":"IF(FormatNumberUS('Capital Social Jun PT'!I38,0)=0,\" \",FormatNumberUS('Capital Social Jun PT'!I38,0))","v":"0"},{"$f":"IF(FormatNumberUS('Capital Social Jun PT'!J38,0)=0,\" \",FormatNumberUS('Capital Social Jun PT'!J38,0))","v":"0"},{"$f":"IF(FormatNumberUS('Capital Social Jun PT'!K38,0)=0,\" \",FormatNumberUS('Capital Social Jun PT'!K38,0))","v":"79,676,502"},{"$f":"IF(FormatNumberUS('Capital Social Jun PT'!L38,0)=0,\" \",FormatNumberUS('Capital Social Jun PT'!L38,0))","v":"602,350,702"},{"$f":"IF('Capital Social Jun PT'!M38=\"\",\"\",IFERROR(FormatNumberUS('Capital Social Jun PT'!M38*100,2)&\"%\",\"-\"))","v":""},{"$f":"IF('Capital Social Jun PT'!N38=\"\",\"\",IFERROR(FormatNumberUS('Capital Social Jun PT'!N38*100,2)&\"%\",\"-\"))","v":""},{"$f":"IF('Capital Social Jun PT'!O38=\"\",\"\",IFERROR(FormatNumberUS('Capital Social Jun PT'!O38*100,2)&\"%\",\"-\"))","v":""}]
[null,null,null,null,null,"SHR.AXIA ENERGIA",{"$f":"IF(FormatNumberUS('Capital Social Jun PT'!G39,0)=0,\" \",FormatNumberUS('Capital Social Jun PT'!G39,0))","v":"22,967"},{"$f":"IF(FormatNumberUS('Capital Social Jun PT'!H39,0)=0,\" \",FormatNumberUS('Capital Social Jun PT'!H39,0))","v":"173,629"},{"$f":"IF(FormatNumberUS('Capital Social Jun PT'!I39,0)=0,\" \",FormatNumberUS('Capital Social Jun PT'!I39,0))","v":"0"},{"$f":"IF(FormatNumberUS('Capital Social Jun PT'!J39,0)=0,\" \",FormatNumberUS('Capital Social Jun PT'!J39,0))","v":"0"},{"$f":"IF(FormatNumberUS('Capital Social Jun PT'!K39,0)=0,\" \",FormatNumberUS('Capital Social Jun PT'!K39,0))","v":"22,967"},{"$f":"IF(FormatNumberUS('Capital Social Jun PT'!L39,0)=0,\" \",FormatNumberUS('Capital Social Jun PT'!L39,0))","v":"173,629"},{"$f":"IF('Capital Social Jun PT'!M39=\"\",\"\",IFERROR(FormatNumberUS('Capital Social Jun PT'!M39*100,2)&\"%\",\"-\"))","v":"0.03%"},{"$f":"IF('Capital Social Jun PT'!N39=\"\",\"\",IFERROR(FormatNumberUS('Capital Social Jun PT'!N39*100,2)&\"%\",\"-\"))","v":"0.00%"},{"$f":"IF('Capital Social Jun PT'!O39=\"\",\"\",IFERROR(FormatNumberUS('Capital Social Jun PT'!O39*100,2)&\"%\",\"-\"))","v":"0.03%"}]
[null,null,null,null,null,null,null,null,null,{"$f":"IF(FormatNumberUS('Capital Social Jun PT'!J40,0)=0,\" \",FormatNumberUS('Capital Social Jun PT'!J40,0))","v":"0"},{"$f":"IF(FormatNumberUS('Capital Social Jun PT'!K40,0)=0,\" \",FormatNumberUS('Capital Social Jun PT'!K40,0))","v":"0"},{"$f":"IF(FormatNumberUS('Capital Social Jun PT'!L40,0)=0,\" \",FormatNumberUS('Capital Social Jun PT'!L40,0))","v":"0"},{"$f":"IF('Capital Social Jun PT'!M40=\"\",\"\",IFERROR(FormatNumberUS('Capital Social Jun PT'!M40*100,2)&\"%\",\"-\"))","v":""},{"$f":"IF('Capital Social Jun PT'!N40=\"\",\"\",IFERROR(FormatNumberUS('Capital Social Jun PT'!N40*100,2)&\"%\",\"-\"))","v":""},{"$f":"IF('Capital Social Jun PT'!O40=\"\",\"\",IFERROR(FormatNumberUS('Capital Social Jun PT'!O40*100,2)&\"%\",\"-\"))","v":""}]
[null,null,"EQUATORIAL PARÁ DISTRIBUIDORA DE ENERGIA S.A.","EQUATORIAL PARÁ DISTRIBUIDORA DE ENERGIA S.A.","Affiliate D","CAPITAL",{"$f":"IF(FormatNumberUS('Capital Social Jun PT'!G41,0)=0,\" \",FormatNumberUS('Capital Social Jun PT'!G41,0))","v":"2,204,620,569"},{"$f":"IF(FormatNumberUS('Capital Social Jun PT'!H41,0)=0,\" \",FormatNumberUS('Capital Social Jun PT'!H41,0))","v":"1,630,313,689"},{"$f":"IF(FormatNumberUS('Capital Social Jun PT'!I41,0)=0,\" \",FormatNumberUS('Capital Social Jun PT'!I41,0))","v":"4,453,438"},{"$f":"IF(FormatNumberUS('Capital Social Jun PT'!J41,0)=0,\" \",FormatNumberUS('Capital Social Jun PT'!J41,0))","v":"3,293,311"},{"$f":"IF(FormatNumberUS('Capital Social Jun PT'!K41,0)=0,\" \",FormatNumberUS('Capital Social Jun PT'!K41,0))","v":"2,209,074,007"},{"$f":"IF(FormatNumberUS('Capital Social Jun PT'!L41,0)=0,\" \",FormatNumberUS('Capital Social Jun PT'!L41,0))","v":"1,633,607,000"},{"$f":"IF('Capital Social Jun PT'!M41=\"\",\"\",IFERROR(FormatNumberUS('Capital Social Jun PT'!M41*100,2)&\"%\",\"-\"))","v":""},{"$f":"IF('Capital Social Jun PT'!N41=\"\",\"\",IFERROR(FormatNumberUS('Capital Social Jun PT'!N41*100,2)&\"%\",\"-\"))","v":""},{"$f":"IF('Capital Social Jun PT'!O41=\"\",\"\",IFERROR(FormatNumberUS('Capital Social Jun PT'!O41*100,2)&\"%\",\"-\"))","v":""}]
[null,null,null,null,null,"SHR.AXIA ENERGIA",{"$f":"IF(FormatNumberUS('Capital Social Jun PT'!G42,0)=0,\" \",FormatNumberUS('Capital Social Jun PT'!G42,0))","v":"20,664,721"},{"$f":"IF(FormatNumberUS('Capital Social Jun PT'!H42,0)=0,\" \",FormatNumberUS('Capital Social Jun PT'!H42,0))","v":"15,281,531"},{"$f":"IF(FormatNumberUS('Capital Social Jun PT'!I42,0)=0,\" \",FormatNumberUS('Capital Social Jun PT'!I42,0))","v":"1,195,973"},{"$f":"IF(FormatNumberUS('Capital Social Jun PT'!J42,0)=0,\" \",FormatNumberUS('Capital Social Jun PT'!J42,0))","v":"884,420"},{"$f":"IF(FormatNumberUS('Capital Social Jun PT'!K42,0)=0,\" \",FormatNumberUS('Capital Social Jun PT'!K42,0))","v":"21,860,694"},{"$f":"IF(FormatNumberUS('Capital Social Jun PT'!L42,0)=0,\" \",FormatNumberUS('Capital Social Jun PT'!L42,0))","v":"16,165,951"},{"$f":"IF('Capital Social Jun PT'!M42=\"\",\"\",IFERROR(FormatNumberUS('Capital Social Jun PT'!M42*100,2)&\"%\",\"-\"))","v":"0.94%"},{"$f":"IF('Capital Social Jun PT'!N42=\"\",\"\",IFERROR(FormatNumberUS('Capital Social Jun PT'!N42*100,2)&\"%\",\"-\"))","v":"26.86%"},{"$f":"IF('Capital Social Jun PT'!O42=\"\",\"\",IFERROR(FormatNumberUS('Capital Social Jun PT'!O42*100,2)&\"%\",\"-\"))","v":"0.99%"}]
[null,null,null,null,null,null,null,null,null,{"$f":"IF(FormatNumberUS('Capital Social Jun PT'!J43,0)=0,\" \",FormatNumberUS('Capital Social Jun PT'!J43,0))","v":"0"},{"$f":"IF(FormatNumberUS('Capital Social Jun PT'!K43,0)=0,\" \",FormatNumberUS('Capital Social Jun PT'!K43,0))","v":"0"},{"$f":"IF(FormatNumberUS('Capital Social Jun PT'!L43,0)=0,\" \",FormatNumberUS('Capital Social Jun PT'!L43,0))","v":"0"},{"$f":"IF('Capital Social Jun PT'!M43=\"\",\"\",IFERROR(FormatNumberUS('Capital Social Jun PT'!M43*100,2)&\"%\",\"-\"))","v":""},{"$f":"IF('Capital Social Jun PT'!N43=\"\",\"\",IFERROR(FormatNumberUS('Capital Social Jun PT'!N43*100,2)&\"%\",\"-\"))","v":""},{"$f":"IF('Capital Social Jun PT'!O43=\"\",\"\",IFERROR(FormatNumberUS('Capital Social Jun PT'!O43*100,2)&\"%\",\"-\"))","v":""}]
[null,null,"EQUATORIAL MARANHAO DISTRIBUIDORA DE ENERGIA S.A","EQUATORIAL MARANHAO DISTRIBUIDORA DE ENERGIA S.A. - CEMAR","Affiliate D","CAPITAL",{"$f":"IF(FormatNumberUS('Capital Social Jun PT'!G44,0)=0,\" \",FormatNumberUS('Capital Social Jun PT'!G44,0))","v":"161,318,939"},{"$f":"IF(FormatNumberUS('Capital Social Jun PT'!H44,0)=0,\" \",FormatNumberUS('Capital Social Jun PT'!H44,0))","v":"1,831,086,632"},{"$f":"IF(FormatNumberUS('Capital Social Jun PT'!I44,0)=0,\" \",FormatNumberUS('Capital Social Jun PT'!I44,0))","v":"2,864,960"},{"$f":"IF(FormatNumberUS('Capital Social Jun PT'!J44,0)=0,\" \",FormatNumberUS('Capital Social Jun PT'!J44,0))","v":"32,519,368"},{"$f":"IF(FormatNumberUS('Capital Social Jun PT'!K44,0)=0,\" \",FormatNumberUS('Capital Social Jun PT'!K44,0))","v":"164,183,899"},{"$f":"IF(FormatNumberUS('Capital Social Jun PT'!L44,0)=0,\" \",FormatNumberUS('Capital Social Jun PT'!L44,0))","v":"1,863,606,000"},{"$f":"IF('Capital Social Jun PT'!M44=\"\",\"\",IFERROR(FormatNumberUS('Capital Social Jun PT'!M44*100,2)&\"%\",\"-\"))","v":""},{"$f":"IF('Capital Social Jun PT'!N44=\"\",\"\",IFERROR(FormatNumberUS('Capital Social Jun PT'!N44*100,2)&\"%\",\"-\"))","v":""},{"$f":"IF('Capital Social Jun PT'!O44=\"\",\"\",IFERROR(FormatNumberUS('Capital Social Jun PT'!O44*100,2)&\"%\",\"-\"))","v":""}]
[null,null,null,null,null,"SHR.AXIA ENERGIA",{"$f":"IF(FormatNumberUS('Capital Social Jun PT'!G45,0)=0,\" \",FormatNumberUS('Capital Social Jun PT'!G45,0))","v":"53,777,259"},{"$f":"IF(FormatNumberUS('Capital Social Jun PT'!H45,0)=0,\" \",FormatNumberUS('Capital Social Jun PT'!H45,0))","v":"610,410,784"},{"$f":"IF(FormatNumberUS('Capital Social Jun PT'!I45,0)=0,\" \",FormatNumberUS('Capital Social Jun PT'!I45,0))","v":"1,068,456"},{"$f":"IF(FormatNumberUS('Capital Social Jun PT'!J45,0)=0,\" \",FormatNumberUS('Capital Social Jun PT'!J45,0))","v":"12,127,748"},{"$f":"IF(FormatNumberUS('Capital Social Jun PT'!K45,0)=0,\" \",FormatNumberUS('Capital Social Jun PT'!K45,0))","v":"54,845,715"},{"$f":"IF(FormatNumberUS('Capital Social Jun PT'!L45,0)=0,\" \",FormatNumberUS('Capital Social Jun PT'!L45,0))","v":"622,538,533"},{"$f":"IF('Capital Social Jun PT'!M45=\"\",\"\",IFERROR(FormatNumberUS('Capital Social Jun PT'!M45*100,2)&\"%\",\"-\"))","v":"33.34%"},{"$f":"IF('Capital Social Jun PT'!N45=\"\",\"\",IFERROR(FormatNumberUS('Capital Social Jun PT'!N45*100,2)&\"%\",\"-\"))","v":"37.29%"},{"$f":"IF('Capital Social Jun PT'!O45=\"\",\"\",IFERROR(FormatNumberUS('Capital Social Jun PT'!O45*100,2)&\"%\",\"-\"))","v":"33.41%"}]
[null,null,null,null,null,null,null,null,null,{"$f":"IF(FormatNumberUS('Capital Social Jun PT'!J46,0)=0,\" \",FormatNumberUS('Capital Social Jun PT'!J46,0))","v":"0"},{"$f":"IF(FormatNumberUS('Capital Social Jun PT'!K46,0)=0,\" \",FormatNumberUS('Capital Social Jun PT'!K46,0))","v":"0"},{"$f":"IF(FormatNumberUS('Capital Social Jun PT'!L46,0)=0,\" \",FormatNumberUS('Capital Social Jun PT'!L46,0))","v":"0"},{"$f":"IF('Capital Social Jun PT'!M46=\"\",\"\",IFERROR(FormatNumberUS('Capital Social Jun PT'!M46*100,2)&\"%\",\"-\"))","v":""},{"$f":"IF('Capital Social Jun PT'!N46=\"\",\"\",IFERROR(FormatNumberUS('Capital Social Jun PT'!N46*100,2)&\"%\",\"-\"))","v":""},{"$f":"IF('Capital Social Jun PT'!O46=\"\",\"\",IFERROR(FormatNumberUS('Capital Social Jun PT'!O46*100,2)&\"%\",\"-\"))","v":""}]
[null,null,"AUREN ","AUREN ENERGIA S.A.","Affiliate G","CAPITAL",{"$f":"IF(FormatNumberUS('Capital Social Jun PT'!G47,0)=0,\" \",FormatNumberUS('Capital Social Jun PT'!G47,0))","v":"1,050,377,632"},{"$f":"IF(FormatNumberUS('Capital Social Jun PT'!H47,0)=0,\" \",FormatNumberUS('Capital Social Jun PT'!H47,0))","v":"6,187,772,000"},{"$f":"IF(FormatNumberUS('Capital Social Jun PT'!I47,0)=0,\" \",FormatNumberUS('Capital Social Jun PT'!I47,0))","v":"0"},{"$f":"IF(FormatNumberUS('Capital Social Jun PT'!J47,0)=0,\" \",FormatNumberUS('Capital Social Jun PT'!J47,0))","v":"0"},{"$f":"IF(FormatNumberUS('Capital Social Jun PT'!K47,0)=0,\" \",FormatNumberUS('Capital Social Jun PT'!K47,0))","v":"1,050,377,632"},{"$f":"IF(FormatNumberUS('Capital Social Jun PT'!L47,0)=0,\" \",FormatNumberUS('Capital Social Jun PT'!L47,0))","v":"6,187,772,000"},{"$f":"IF('Capital Social Jun PT'!M47=\"\",\"\",IFERROR(FormatNumberUS('Capital Social Jun PT'!M47*100,2)&\"%\",\"-\"))","v":""},{"$f":"IF('Capital Social Jun PT'!N47=\"\",\"\",IFERROR(FormatNumberUS('Capital Social Jun PT'!N47*100,2)&\"%\",\"-\"))","v":""},{"$f":"IF('Capital Social Jun PT'!O47=\"\",\"\",IFERROR(FormatNumberUS('Capital Social Jun PT'!O47*100,2)&\"%\",\"-\"))","v":""}]
[null,null,null,null,null,"SHR.AXIA ENERGIA",{"$f":"IF(FormatNumberUS('Capital Social Jun PT'!G48,0)=0,\" \",FormatNumberUS('Capital Social Jun PT'!G48,0))","v":"415,962"},{"$f":"IF(FormatNumberUS('Capital Social Jun PT'!H48,0)=0,\" \",FormatNumberUS('Capital Social Jun PT'!H48,0))","v":"2,450,431"},{"$f":"IF(FormatNumberUS('Capital Social Jun PT'!I48,0)=0,\" \",FormatNumberUS('Capital Social Jun PT'!I48,0))","v":"0"},{"$f":"IF(FormatNumberUS('Capital Social Jun PT'!J48,0)=0,\" \",FormatNumberUS('Capital Social Jun PT'!J48,0))","v":"0"},{"$f":"IF(FormatNumberUS('Capital Social Jun PT'!K48,0)=0,\" \",FormatNumberUS('Capital Social Jun PT'!K48,0))","v":"415,962"},{"$f":"IF(FormatNumberUS('Capital Social Jun PT'!L48,0)=0,\" \",FormatNumberUS('Capital Social Jun PT'!L48,0))","v":"2,450,431"},{"$f":"IF('Capital Social Jun PT'!M48=\"\",\"\",IFERROR(FormatNumberUS('Capital Social Jun PT'!M48*100,2)&\"%\",\"-\"))","v":"0.04%"},{"$f":"IF('Capital Social Jun PT'!N48=\"\",\"\",IFERROR(FormatNumberUS('Capital Social Jun PT'!N48*100,2)&\"%\",\"-\"))","v":"0.00%"},{"$f":"IF('Capital Social Jun PT'!O48=\"\",\"\",IFERROR(FormatNumberUS('Capital Social Jun PT'!O48*100,2)&\"%\",\"-\"))","v":"0.04%"}]
[null,null,null,null,null,null,null,null,null,{"$f":"IF(FormatNumberUS('Capital Social Jun PT'!J49,0)=0,\" \",FormatNumberUS('Capital Social Jun PT'!J49,0))","v":"0"},{"$f":"IF(FormatNumberUS('Capital Social Jun PT'!K49,0)=0,\" \",FormatNumberUS('Capital Social Jun PT'!K49,0))","v":"0"},{"$f":"IF(FormatNumberUS('Capital Social Jun PT'!L49,0)=0,\" \",FormatNumberUS('Capital Social Jun PT'!L49,0))","v":"0"},{"$f":"IF('Capital Social Jun PT'!M49=\"\",\"\",IFERROR(FormatNumberUS('Capital Social Jun PT'!M49*100,2)&\"%\",\"-\"))","v":""},{"$f":"IF('Capital Social Jun PT'!N49=\"\",\"\",IFERROR(FormatNumberUS('Capital Social Jun PT'!N49*100,2)&\"%\",\"-\"))","v":""},{"$f":"IF('Capital Social Jun PT'!O49=\"\",\"\",IFERROR(FormatNumberUS('Capital Social Jun PT'!O49*100,2)&\"%\",\"-\"))","v":""}]
[null,null,"RIO PARANAPANEMA ENERGIA S.A.","RIO PARANAPANEMA ENERGIA S.A.","Affiliate G","CAPITAL",{"$f":"IF(FormatNumberUS('Capital Social Jun PT'!G50,0)=0,\" \",FormatNumberUS('Capital Social Jun PT'!G50,0))","v":"31,477,761"},{"$f":"IF(FormatNumberUS('Capital Social Jun PT'!H50,0)=0,\" \",FormatNumberUS('Capital Social Jun PT'!H50,0))","v":"279,712,501"},{"$f":"IF(FormatNumberUS('Capital Social Jun PT'!I50,0)=0,\" \",FormatNumberUS('Capital Social Jun PT'!I50,0))","v":"62,955,522"},{"$f":"IF(FormatNumberUS('Capital Social Jun PT'!J50,0)=0,\" \",FormatNumberUS('Capital Social Jun PT'!J50,0))","v":"559,425,003"},{"$f":"IF(FormatNumberUS('Capital Social Jun PT'!K50,0)=0,\" \",FormatNumberUS('Capital Social Jun PT'!K50,0))","v":"94,433,283"},{"$f":"IF(FormatNumberUS('Capital Social Jun PT'!L50,0)=0,\" \",FormatNumberUS('Capital Social Jun PT'!L50,0))","v":"839,137,504"},{"$f":"IF('Capital Social Jun PT'!M50=\"\",\"\",IFERROR(FormatNumberUS('Capital Social Jun PT'!M50*100,2)&\"%\",\"-\"))","v":""},{"$f":"IF('Capital Social Jun PT'!N50=\"\",\"\",IFERROR(FormatNumberUS('Capital Social Jun PT'!N50*100,2)&\"%\",\"-\"))","v":""},{"$f":"IF('Capital Social Jun PT'!O50=\"\",\"\",IFERROR(FormatNumberUS('Capital Social Jun PT'!O50*100,2)&\"%\",\"-\"))","v":""}]
[null,null,null,null,null,"SHR.AXIA ENERGIA",{"$f":"IF(FormatNumberUS('Capital Social Jun PT'!G51,0)=0,\" \",FormatNumberUS('Capital Social Jun PT'!G51,0))","v":"0"},{"$f":"IF(FormatNumberUS('Capital Social Jun PT'!H51,0)=0,\" \",FormatNumberUS('Capital Social Jun PT'!H51,0))","v":"0"},{"$f":"IF(FormatNumberUS('Capital Social Jun PT'!I51,0)=0,\" \",FormatNumberUS('Capital Social Jun PT'!I51,0))","v":"441,539"},{"$f":"IF(FormatNumberUS('Capital Social Jun PT'!J51,0)=0,\" \",FormatNumberUS('Capital Social Jun PT'!J51,0))","v":"3,923,531"},{"$f":"IF(FormatNumberUS('Capital Social Jun PT'!K51,0)=0,\" \",FormatNumberUS('Capital Social Jun PT'!K51,0))","v":"441,539"},{"$f":"IF(FormatNumberUS('Capital Social Jun PT'!L51,0)=0,\" \",FormatNumberUS('Capital Social Jun PT'!L51,0))","v":"3,923,531"},{"$f":"IF('Capital Social Jun PT'!M51=\"\",\"\",IFERROR(FormatNumberUS('Capital Social Jun PT'!M51*100,2)&\"%\",\"-\"))","v":"0.00%"},{"$f":"IF('Capital Social Jun PT'!N51=\"\",\"\",IFERROR(FormatNumberUS('Capital Social Jun PT'!N51*100,2)&\"%\",\"-\"))","v":"0.70%"},{"$f":"IF('Capital Social Jun PT'!O51=\"\",\"\",IFERROR(FormatNumberUS('Capital Social Jun PT'!O51*100,2)&\"%\",\"-\"))","v":"0.47%"}]
[null,null,null,null,null,null,null,null,null,{"$f":"IF(FormatNumberUS('Capital Social Jun PT'!J52,0)=0,\" \",FormatNumberUS('Capital Social Jun PT'!J52,0))","v":"0"},{"$f":"IF(FormatNumberUS('Capital Social Jun PT'!K52,0)=0,\" \",FormatNumberUS('Capital Social Jun PT'!K52,0))","v":"0"},{"$f":"IF(FormatNumberUS('Capital Social Jun PT'!L52,0)=0,\" \",FormatNumberUS('Capital Social Jun PT'!L52,0))","v":"0"},{"$f":"IF('Capital Social Jun PT'!M52=\"\",\"\",IFERROR(FormatNumberUS('Capital Social Jun PT'!M52*100,2)&\"%\",\"-\"))","v":""},{"$f":"IF('Capital Social Jun PT'!N52=\"\",\"\",IFERROR(FormatNumberUS('Capital Social Jun PT'!N52*100,2)&\"%\",\"-\"))","v":""},{"$f":"IF('Capital Social Jun PT'!O52=\"\",\"\",IFERROR(FormatNumberUS('Capital Social Jun PT'!O52*100,2)&\"%\",\"-\"))","v":""}]
[null,null,"COELCE","CIA ENERGÉTICA DO CEARÁ - COELCE","Affiliate D","CAPITAL",{"$f":"IF(FormatNumberUS('Capital Social Jun PT'!G53,0)=0,\" \",FormatNumberUS('Capital Social Jun PT'!G53,0))","v":"53,402,024"},{"$f":"IF(FormatNumberUS('Capital Social Jun PT'!H53,0)=0,\" \",FormatNumberUS('Capital Social Jun PT'!H53,0))","v":"1,320,156,255"},{"$f":"IF(FormatNumberUS('Capital Social Jun PT'!I53,0)=0,\" \",FormatNumberUS('Capital Social Jun PT'!I53,0))","v":"32,899,995"},{"$f":"IF(FormatNumberUS('Capital Social Jun PT'!J53,0)=0,\" \",FormatNumberUS('Capital Social Jun PT'!J53,0))","v":"813,323,745"},{"$f":"IF(FormatNumberUS('Capital Social Jun PT'!K53,0)=0,\" \",FormatNumberUS('Capital Social Jun PT'!K53,0))","v":"86,302,019"},{"$f":"IF(FormatNumberUS('Capital Social Jun PT'!L53,0)=0,\" \",FormatNumberUS('Capital Social Jun PT'!L53,0))","v":"2,133,480,000"},{"$f":"IF('Capital Social Jun PT'!M53=\"\",\"\",IFERROR(FormatNumberUS('Capital Social Jun PT'!M53*100,2)&\"%\",\"-\"))","v":""},{"$f":"IF('Capital Social Jun PT'!N53=\"\",\"\",IFERROR(FormatNumberUS('Capital Social Jun PT'!N53*100,2)&\"%\",\"-\"))","v":""},{"$f":"IF('Capital Social Jun PT'!O53=\"\",\"\",IFERROR(FormatNumberUS('Capital Social Jun PT'!O53*100,2)&\"%\",\"-\"))","v":""}]
[null,null,null,null,null,"SHR.AXIA ENERGIA",{"$f":"IF(FormatNumberUS('Capital Social Jun PT'!G54,0)=0,\" \",FormatNumberUS('Capital Social Jun PT'!G54,0))","v":"27,543"},{"$f":"IF(FormatNumberUS('Capital Social Jun PT'!H54,0)=0,\" \",FormatNumberUS('Capital Social Jun PT'!H54,0))","v":"680,893"},{"$f":"IF(FormatNumberUS('Capital Social Jun PT'!I54,0)=0,\" \",FormatNumberUS('Capital Social Jun PT'!I54,0))","v":"5,503,530"},{"$f":"IF(FormatNumberUS('Capital Social Jun PT'!J54,0)=0,\" \",FormatNumberUS('Capital Social Jun PT'!J54,0))","v":"136,053,262"},{"$f":"IF(FormatNumberUS('Capital Social Jun PT'!K54,0)=0,\" \",FormatNumberUS('Capital Social Jun PT'!K54,0))","v":"5,531,073"},{"$f":"IF(FormatNumberUS('Capital Social Jun PT'!L54,0)=0,\" \",FormatNumberUS('Capital Social Jun PT'!L54,0))","v":"136,734,155"},{"$f":"IF('Capital Social Jun PT'!M54=\"\",\"\",IFERROR(FormatNumberUS('Capital Social Jun PT'!M54*100,2)&\"%\",\"-\"))","v":"0.05%"},{"$f":"IF('Capital Social Jun PT'!N54=\"\",\"\",IFERROR(FormatNumberUS('Capital Social Jun PT'!N54*100,2)&\"%\",\"-\"))","v":"16.73%"},{"$f":"IF('Capital Social Jun PT'!O54=\"\",\"\",IFERROR(FormatNumberUS('Capital Social Jun PT'!O54*100,2)&\"%\",\"-\"))","v":"6.41%"}]
[null,null,null,null,null,null,{"$f":"IF(FormatNumberUS('Capital Social Jun PT'!G55,0)=0,\" \",FormatNumberUS('Capital Social Jun PT'!G55,0))","v":"0"},{"$f":"IF(FormatNumberUS('Capital Social Jun PT'!H55,0)=0,\" \",FormatNumberUS('Capital Social Jun PT'!H55,0))","v":"0"},{"$f":"IF(FormatNumberUS('Capital Social Jun PT'!I55,0)=0,\" \",FormatNumberUS('Capital Social Jun PT'!I55,0))","v":"0"},{"$f":"IF(FormatNumberUS('Capital Social Jun PT'!J55,0)=0,\" \",FormatNumberUS('Capital Social Jun PT'!J55,0))","v":"0"},{"$f":"IF(FormatNumberUS('Capital Social Jun PT'!K55,0)=0,\" \",FormatNumberUS('Capital Social Jun PT'!K55,0))","v":"0"},{"$f":"IF(FormatNumberUS('Capital Social Jun PT'!L55,0)=0,\" \",FormatNumberUS('Capital Social Jun PT'!L55,0))","v":"0"},{"$f":"IF('Capital Social Jun PT'!M55=\"\",\"\",IFERROR(FormatNumberUS('Capital Social Jun PT'!M55*100,2)&\"%\",\"-\"))","v":""},{"$f":"IF('Capital Social Jun PT'!N55=\"\",\"\",IFERROR(FormatNumberUS('Capital Social Jun PT'!N55*100,2)&\"%\",\"-\"))","v":""},{"$f":"IF('Capital Social Jun PT'!O55=\"\",\"\",IFERROR(FormatNumberUS('Capital Social Jun PT'!O55*100,2)&\"%\",\"-\"))","v":""}]
[null,null,"ISA ENERGIA","ISA ENERGIA BRASIL S.A.","Affiliate T","CAPITAL",{"$f":"IF(FormatNumberUS('Capital Social Jun PT'!G56,0)=0,\" \",FormatNumberUS('Capital Social Jun PT'!G56,0))","v":"238,170,004"},{"$f":"IF(FormatNumberUS('Capital Social Jun PT'!H56,0)=0,\" \",FormatNumberUS('Capital Social Jun PT'!H56,0))","v":"1,215,699,483"},{"$f":"IF(FormatNumberUS('Capital Social Jun PT'!I56,0)=0,\" \",FormatNumberUS('Capital Social Jun PT'!I56,0))","v":"465,157,744"},{"$f":"IF(FormatNumberUS('Capital Social Jun PT'!J56,0)=0,\" \",FormatNumberUS('Capital Social Jun PT'!J56,0))","v":"2,374,320,944"},{"$f":"IF(FormatNumberUS('Capital Social Jun PT'!K56,0)=0,\" \",FormatNumberUS('Capital Social Jun PT'!K56,0))","v":"703,327,748"},{"$f":"IF(FormatNumberUS('Capital Social Jun PT'!L56,0)=0,\" \",FormatNumberUS('Capital Social Jun PT'!L56,0))","v":"3,590,020,427"},{"$f":"IF('Capital Social Jun PT'!M56=\"\",\"\",IFERROR(FormatNumberUS('Capital Social Jun PT'!M56*100,2)&\"%\",\"-\"))","v":""},{"$f":"IF('Capital Social Jun PT'!N56=\"\",\"\",IFERROR(FormatNumberUS('Capital Social Jun PT'!N56*100,2)&\"%\",\"-\"))","v":""},{"$f":"IF('Capital Social Jun PT'!O56=\"\",\"\",IFERROR(FormatNumberUS('Capital Social Jun PT'!O56*100,2)&\"%\",\"-\"))","v":""}]
[null,null,null,null,null,"SHR.AXIA ENERGIA",{"$f":"IF(FormatNumberUS('Capital Social Jun PT'!G57,0)=0,\" \",FormatNumberUS('Capital Social Jun PT'!G57,0))","v":"5,340,330"},{"$f":"IF(FormatNumberUS('Capital Social Jun PT'!H57,0)=0,\" \",FormatNumberUS('Capital Social Jun PT'!H57,0))","v":"27,258,833"},{"$f":"IF(FormatNumberUS('Capital Social Jun PT'!I57,0)=0,\" \",FormatNumberUS('Capital Social Jun PT'!I57,0))","v":"129,694,535"},{"$f":"IF(FormatNumberUS('Capital Social Jun PT'!J57,0)=0,\" \",FormatNumberUS('Capital Social Jun PT'!J57,0))","v":"662,004,352"},{"$f":"IF(FormatNumberUS('Capital Social Jun PT'!K57,0)=0,\" \",FormatNumberUS('Capital Social Jun PT'!K57,0))","v":"135,034,865"},{"$f":"IF(FormatNumberUS('Capital Social Jun PT'!L57,0)=0,\" \",FormatNumberUS('Capital Social Jun PT'!L57,0))","v":"689,263,185"},{"$f":"IF('Capital Social Jun PT'!M57=\"\",\"\",IFERROR(FormatNumberUS('Capital Social Jun PT'!M57*100,2)&\"%\",\"-\"))","v":"2.24%"},{"$f":"IF('Capital Social Jun PT'!N57=\"\",\"\",IFERROR(FormatNumberUS('Capital Social Jun PT'!N57*100,2)&\"%\",\"-\"))","v":"27.88%"},{"$f":"IF('Capital Social Jun PT'!O57=\"\",\"\",IFERROR(FormatNumberUS('Capital Social Jun PT'!O57*100,2)&\"%\",\"-\"))","v":"19.20%"}]
[null,null,null,null,null,null,{"$f":"IF(FormatNumberUS('Capital Social Jun PT'!G58,0)=0,\" \",FormatNumberUS('Capital Social Jun PT'!G58,0))","v":"0"},{"$f":"IF(FormatNumberUS('Capital Social Jun PT'!H58,0)=0,\" \",FormatNumberUS('Capital Social Jun PT'!H58,0))","v":"0"},{"$f":"IF(FormatNumberUS('Capital Social Jun PT'!I58,0)=0,\" \",FormatNumberUS('Capital Social Jun PT'!I58,0))","v":"0"},{"$f":"IF(FormatNumberUS('Capital Social Jun PT'!J58,0)=0,\" \",FormatNumberUS('Capital Social Jun PT'!J58,0))","v":"0"},{"$f":"IF(FormatNumberUS('Capital Social Jun PT'!K58,0)=0,\" \",FormatNumberUS('Capital Social Jun PT'!K58,0))","v":"0"},{"$f":"IF(FormatNumberUS('Capital Social Jun PT'!L58,0)=0,\" \",FormatNumberUS('Capital Social Jun PT'!L58,0))","v":"0"},{"$f":"IF('Capital Social Jun PT'!M58=\"\",\"\",IFERROR(FormatNumberUS('Capital Social Jun PT'!M58*100,2)&\"%\",\"-\"))","v":""},{"$f":"IF('Capital Social Jun PT'!N58=\"\",\"\",IFERROR(FormatNumberUS('Capital Social Jun PT'!N58*100,2)&\"%\",\"-\"))","v":""},{"$f":"IF('Capital Social Jun PT'!O58=\"\",\"\",IFERROR(FormatNumberUS('Capital Social Jun PT'!O58*100,2)&\"%\",\"-\"))","v":""}]
[null,null,"ENERGISA","ENERGISA S.A.","Affiliate P","CAPITAL",{"$f":"IF(FormatNumberUS('Capital Social Jun PT'!G59,0)=0,\" \",FormatNumberUS('Capital Social Jun PT'!G59,0))","v":"887,231,247"},{"$f":"IF(FormatNumberUS('Capital Social Jun PT'!H59,0)=0,\" \",FormatNumberUS('Capital Social Jun PT'!H59,0))","v":"4,215,039,340"},{"$f":"IF(FormatNumberUS('Capital Social Jun PT'!I59,0)=0,\" \",FormatNumberUS('Capital Social Jun PT'!I59,0))","v":"1,402,193,416"},{"$f":"IF(FormatNumberUS('Capital Social Jun PT'!J59,0)=0,\" \",FormatNumberUS('Capital Social Jun PT'!J59,0))","v":"6,661,510,660"},{"$f":"IF(FormatNumberUS('Capital Social Jun PT'!K59,0)=0,\" \",FormatNumberUS('Capital Social Jun PT'!K59,0))","v":"2,289,424,663"},{"$f":"IF(FormatNumberUS('Capital Social Jun PT'!L59,0)=0,\" \",FormatNumberUS('Capital Social Jun PT'!L59,0))","v":"10,876,550,000"},{"$f":"IF('Capital Social Jun PT'!M59=\"\",\"\",IFERROR(FormatNumberUS('Capital Social Jun PT'!M59*100,2)&\"%\",\"-\"))","v":""},{"$f":"IF('Capital Social Jun PT'!N59=\"\",\"\",IFERROR(FormatNumberUS('Capital Social Jun PT'!N59*100,2)&\"%\",\"-\"))","v":""},{"$f":"IF('Capital Social Jun PT'!O59=\"\",\"\",IFERROR(FormatNumberUS('Capital Social Jun PT'!O59*100,2)&\"%\",\"-\"))","v":""}]
[null,null,null,null,null,"SHR.AXIA ENERGIA",{"$f":"IF(FormatNumberUS('Capital Social Jun PT'!G60,0)=0,\" \",FormatNumberUS('Capital Social Jun PT'!G60,0))","v":"5,182,561"},{"$f":"IF(FormatNumberUS('Capital Social Jun PT'!H60,0)=0,\" \",FormatNumberUS('Capital Social Jun PT'!H60,0))","v":"24,621,201"},{"$f":"IF(FormatNumberUS('Capital Social Jun PT'!I60,0)=0,\" \",FormatNumberUS('Capital Social Jun PT'!I60,0))","v":"0"},{"$f":"IF(FormatNumberUS('Capital Social Jun PT'!J60,0)=0,\" \",FormatNumberUS('Capital Social Jun PT'!J60,0))","v":"0"},{"$f":"IF(FormatNumberUS('Capital Social Jun PT'!K60,0)=0,\" \",FormatNumberUS('Capital Social Jun PT'!K60,0))","v":"5,182,561"},{"$f":"IF(FormatNumberUS('Capital Social Jun PT'!L60,0)=0,\" \",FormatNumberUS('Capital Social Jun PT'!L60,0))","v":"24,621,201"},{"$f":"IF('Capital Social Jun PT'!M60=\"\",\"\",IFERROR(FormatNumberUS('Capital Social Jun PT'!M60*100,2)&\"%\",\"-\"))","v":"0.58%"},{"$f":"IF('Capital Social Jun PT'!N60=\"\",\"\",IFERROR(FormatNumberUS('Capital Social Jun PT'!N60*100,2)&\"%\",\"-\"))","v":"0.00%"},{"$f":"IF('Capital Social Jun PT'!O60=\"\",\"\",IFERROR(FormatNumberUS('Capital Social Jun PT'!O60*100,2)&\"%\",\"-\"))","v":"0.23%"}]
[null,null,null,null,null,null,null,null,null,null,{"$f":"IF(FormatNumberUS('Capital Social Jun PT'!K61,0)=0,\" \",FormatNumberUS('Capital Social Jun PT'!K61,0))","v":"0"},{"$f":"IF(FormatNumberUS('Capital Social Jun PT'!L61,0)=0,\" \",FormatNumberUS('Capital Social Jun PT'!L61,0))","v":"0"},{"$f":"IF('Capital Social Jun PT'!M61=\"\",\"\",IFERROR(FormatNumberUS('Capital Social Jun PT'!M61*100,2)&\"%\",\"-\"))","v":""},{"$f":"IF('Capital Social Jun PT'!N61=\"\",\"\",IFERROR(FormatNumberUS('Capital Social Jun PT'!N61*100,2)&\"%\",\"-\"))","v":""},{"$f":"IF('Capital Social Jun PT'!O61=\"\",\"\",IFERROR(FormatNumberUS('Capital Social Jun PT'!O61*100,2)&\"%\",\"-\"))","v":""}]
[null,null,"TAESA","TRANSMISSORA ALIANÇA DE ENERGIA ","Affiliate T","CAP.SOCIAL UNITS",{"$f":"IF(FormatNumberUS('Capital Social Jun PT'!G62,0)=0,\" \",FormatNumberUS('Capital Social Jun PT'!G62,0))","v":"590,714,069"},{"$f":"IF(FormatNumberUS('Capital Social Jun PT'!H62,0)=0,\" \",FormatNumberUS('Capital Social Jun PT'!H62,0))","v":"1,753,306,077"},{"$f":"IF(FormatNumberUS('Capital Social Jun PT'!I62,0)=0,\" \",FormatNumberUS('Capital Social Jun PT'!I62,0))","v":"442,782,652"},{"$f":"IF(FormatNumberUS('Capital Social Jun PT'!J62,0)=0,\" \",FormatNumberUS('Capital Social Jun PT'!J62,0))","v":"1,314,228,923"},{"$f":"IF(FormatNumberUS('Capital Social Jun PT'!K62,0)=0,\" \",FormatNumberUS('Capital Social Jun PT'!K62,0))","v":"1,033,496,721"},{"$f":"IF(FormatNumberUS('Capital Social Jun PT'!L62,0)=0,\" \",FormatNumberUS('Capital Social Jun PT'!L62,0))","v":"3,067,535,000"},{"$f":"IF('Capital Social Jun PT'!M62=\"\",\"\",IFERROR(FormatNumberUS('Capital Social Jun PT'!M62*100,2)&\"%\",\"-\"))","v":""},{"$f":"IF('Capital Social Jun PT'!N62=\"\",\"\",IFERROR(FormatNumberUS('Capital Social Jun PT'!N62*100,2)&\"%\",\"-\"))","v":""},{"$f":"IF('Capital Social Jun PT'!O62=\"\",\"\",IFERROR(FormatNumberUS('Capital Social Jun PT'!O62*100,2)&\"%\",\"-\"))","v":""}]
[null,null,null,null,null,"SHR.AXIA ENERGIA",{"$f":"IF(FormatNumberUS('Capital Social Jun PT'!G63,0)=0,\" \",FormatNumberUS('Capital Social Jun PT'!G63,0))","v":"660,000"},{"$f":"IF(FormatNumberUS('Capital Social Jun PT'!H63,0)=0,\" \",FormatNumberUS('Capital Social Jun PT'!H63,0))","v":"1,958,955"},{"$f":"IF(FormatNumberUS('Capital Social Jun PT'!I63,0)=0,\" \",FormatNumberUS('Capital Social Jun PT'!I63,0))","v":"1,320,000"},{"$f":"IF(FormatNumberUS('Capital Social Jun PT'!J63,0)=0,\" \",FormatNumberUS('Capital Social Jun PT'!J63,0))","v":"3,917,909"},{"$f":"IF(FormatNumberUS('Capital Social Jun PT'!K63,0)=0,\" \",FormatNumberUS('Capital Social Jun PT'!K63,0))","v":"1,980,000"},{"$f":"IF(FormatNumberUS('Capital Social Jun PT'!L63,0)=0,\" \",FormatNumberUS('Capital Social Jun PT'!L63,0))","v":"5,876,864"},{"$f":"IF('Capital Social Jun PT'!M63=\"\",\"\",IFERROR(FormatNumberUS('Capital Social Jun PT'!M63*100,2)&\"%\",\"-\"))","v":"0.11%"},{"$f":"IF('Capital Social Jun PT'!N63=\"\",\"\",IFERROR(FormatNumberUS('Capital Social Jun PT'!N63*100,2)&\"%\",\"-\"))","v":"0.30%"},{"$f":"IF('Capital Social Jun PT'!O63=\"\",\"\",IFERROR(FormatNumberUS('Capital Social Jun PT'!O63*100,2)&\"%\",\"-\"))","v":"0.19%"}]
[]
[null,null,"ENGIE","ENGIE BRASIL ENERGIA S.A.","Affiliate T","CAP.SOCIAL UNITS",{"$f":"IF(FormatNumberUS('Capital Social Jun PT'!G65,0)=0,\" \",FormatNumberUS('Capital Social Jun PT'!G65,0))","v":"1,142,298,836"},{"$f":"IF(FormatNumberUS('Capital Social Jun PT'!H65,0)=0,\" \",FormatNumberUS('Capital Social Jun PT'!H65,0))","v":"6,863,706,795"},{"$f":"IF(FormatNumberUS('Capital Social Jun PT'!I65,0)=0,\" \",FormatNumberUS('Capital Social Jun PT'!I65,0))","v":"0"},{"$f":"IF(FormatNumberUS('Capital Social Jun PT'!J65,0)=0,\" \",FormatNumberUS('Capital Social Jun PT'!J65,0))","v":"0"},{"$f":"IF(FormatNumberUS('Capital Social Jun PT'!K65,0)=0,\" \",FormatNumberUS('Capital Social Jun PT'!K65,0))","v":"1,142,298,836"},{"$f":"IF(FormatNumberUS('Capital Social Jun PT'!L65,0)=0,\" \",FormatNumberUS('Capital Social Jun PT'!L65,0))","v":"6,863,706,795"},{"$f":"IF('Capital Social Jun PT'!M65=\"\",\"\",IFERROR(FormatNumberUS('Capital Social Jun PT'!M65*100,2)&\"%\",\"-\"))","v":""},{"$f":"IF('Capital Social Jun PT'!N65=\"\",\"\",IFERROR(FormatNumberUS('Capital Social Jun PT'!N65*100,2)&\"%\",\"-\"))","v":""},{"$f":"IF('Capital Social Jun PT'!O65=\"\",\"\",IFERROR(FormatNumberUS('Capital Social Jun PT'!O65*100,2)&\"%\",\"-\"))","v":""}]
[null,null,null,null,null,"SHR.AXIA ENERGIA",{"$f":"IF(FormatNumberUS('Capital Social Jun PT'!G66,0)=0,\" \",FormatNumberUS('Capital Social Jun PT'!G66,0))","v":"326"},{"$f":"IF(FormatNumberUS('Capital Social Jun PT'!H66,0)=0,\" \",FormatNumberUS('Capital Social Jun PT'!H66,0))","v":"1,959"},{"$f":"IF(FormatNumberUS('Capital Social Jun PT'!I66,0)=0,\" \",FormatNumberUS('Capital Social Jun PT'!I66,0))","v":"0"},{"$f":"IF(FormatNumberUS('Capital Social Jun PT'!J66,0)=0,\" \",FormatNumberUS('Capital Social Jun PT'!J66,0))","v":"0"},{"$f":"IF(FormatNumberUS('Capital Social Jun PT'!K66,0)=0,\" \",FormatNumberUS('Capital Social Jun PT'!K66,0))","v":"326"},{"$f":"IF(FormatNumberUS('Capital Social Jun PT'!L66,0)=0,\" \",FormatNumberUS('Capital Social Jun PT'!L66,0))","v":"1,959"},{"$f":"IF('Capital Social Jun PT'!M66=\"\",\"\",IFERROR(FormatNumberUS('Capital Social Jun PT'!M66*100,2)&\"%\",\"-\"))","v":"0.00%"},{"$f":"IF('Capital Social Jun PT'!N66=\"\",\"\",IFERROR(FormatNumberUS('Capital Social Jun PT'!N66*100,2)&\"%\",\"-\"))","v":"0.00%"},{"$f":"IF('Capital Social Jun PT'!O66=\"\",\"\",IFERROR(FormatNumberUS('Capital Social Jun PT'!O66*100,2)&\"%\",\"-\"))","v":"0.00%"}]
[]
[null,null,"AFLUENTE GERAÇÃO (NEOENERGIA)","AFLUENTE GERAÇÃO DE ENERGIA ELÉTRICA S.A.","Affiliate G","CAP.SOCIAL UNITS",{"$f":"IF(FormatNumberUS('Capital Social Jun PT'!G68,0)=0,\" \",FormatNumberUS('Capital Social Jun PT'!G68,0))","v":"328,544,000"},{"$f":"IF(FormatNumberUS('Capital Social Jun PT'!H68,0)=0,\" \",FormatNumberUS('Capital Social Jun PT'!H68,0))","v":"33,765,982,380"},{"$f":"IF(FormatNumberUS('Capital Social Jun PT'!I68,0)=0,\" \",FormatNumberUS('Capital Social Jun PT'!I68,0))","v":"1,577,000"},{"$f":"IF(FormatNumberUS('Capital Social Jun PT'!J68,0)=0,\" \",FormatNumberUS('Capital Social Jun PT'!J68,0))","v":"162,075,564"},{"$f":"IF(FormatNumberUS('Capital Social Jun PT'!K68,0)=0,\" \",FormatNumberUS('Capital Social Jun PT'!K68,0))","v":"330,121,000"},{"$f":"IF(FormatNumberUS('Capital Social Jun PT'!L68,0)=0,\" \",FormatNumberUS('Capital Social Jun PT'!L68,0))","v":"33,928,057,945"},{"$f":"IF('Capital Social Jun PT'!M68=\"\",\"\",IFERROR(FormatNumberUS('Capital Social Jun PT'!M68*100,2)&\"%\",\"-\"))","v":""},{"$f":"IF('Capital Social Jun PT'!N68=\"\",\"\",IFERROR(FormatNumberUS('Capital Social Jun PT'!N68*100,2)&\"%\",\"-\"))","v":""},{"$f":"IF('Capital Social Jun PT'!O68=\"\",\"\",IFERROR(FormatNumberUS('Capital Social Jun PT'!O68*100,2)&\"%\",\"-\"))","v":""}]
[null,null,null,null,null,"SHR.AXIA ENERGIA",{"$f":"IF(FormatNumberUS('Capital Social Jun PT'!G69,0)=0,\" \",FormatNumberUS('Capital Social Jun PT'!G69,0))","v":"46"},{"$f":"IF(FormatNumberUS('Capital Social Jun PT'!H69,0)=0,\" \",FormatNumberUS('Capital Social Jun PT'!H69,0))","v":"4,728"},{"$f":"IF(FormatNumberUS('Capital Social Jun PT'!I69,0)=0,\" \",FormatNumberUS('Capital Social Jun PT'!I69,0))","v":"36"},{"$f":"IF(FormatNumberUS('Capital Social Jun PT'!J69,0)=0,\" \",FormatNumberUS('Capital Social Jun PT'!J69,0))","v":"3,700"},{"$f":"IF(FormatNumberUS('Capital Social Jun PT'!K69,0)=0,\" \",FormatNumberUS('Capital Social Jun PT'!K69,0))","v":"82"},{"$f":"IF(FormatNumberUS('Capital Social Jun PT'!L69,0)=0,\" \",FormatNumberUS('Capital Social Jun PT'!L69,0))","v":"8,428"},{"$f":"IF('Capital Social Jun PT'!M69=\"\",\"\",IFERROR(FormatNumberUS('Capital Social Jun PT'!M69*100,2)&\"%\",\"-\"))","v":"0.00%"},{"$f":"IF('Capital Social Jun PT'!N69=\"\",\"\",IFERROR(FormatNumberUS('Capital Social Jun PT'!N69*100,2)&\"%\",\"-\"))","v":"0.00%"},{"$f":"IF('Capital Social Jun PT'!O69=\"\",\"\",IFERROR(FormatNumberUS('Capital Social Jun PT'!O69*100,2)&\"%\",\"-\"))","v":"0.00%"}]
[]
[null,null,"OI S.A.","OI S.A. – EM RECUPERAÇÃO JUDICIAL","Affiliate Telecom","CAP.SOCIAL UNITS",{"$f":"IF(FormatNumberUS('Capital Social Jun PT'!G71,0)=0,\" \",FormatNumberUS('Capital Social Jun PT'!G71,0))","v":"3,261,287,392"},{"$f":"IF(FormatNumberUS('Capital Social Jun PT'!H71,0)=0,\" \",FormatNumberUS('Capital Social Jun PT'!H71,0))","v":"60,071,415,865"},{"$f":"IF(FormatNumberUS('Capital Social Jun PT'!I71,0)=0,\" \",FormatNumberUS('Capital Social Jun PT'!I71,0))","v":"0"},{"$f":"IF(FormatNumberUS('Capital Social Jun PT'!J71,0)=0,\" \",FormatNumberUS('Capital Social Jun PT'!J71,0))","v":"0"},{"$f":"IF(FormatNumberUS('Capital Social Jun PT'!K71,0)=0,\" \",FormatNumberUS('Capital Social Jun PT'!K71,0))","v":"3,261,287,392"},{"$f":"IF(FormatNumberUS('Capital Social Jun PT'!L71,0)=0,\" \",FormatNumberUS('Capital Social Jun PT'!L71,0))","v":"60,071,415,865"},{"$f":"IF('Capital Social Jun PT'!M71=\"\",\"\",IFERROR(FormatNumberUS('Capital Social Jun PT'!M71*100,2)&\"%\",\"-\"))","v":""},{"$f":"IF('Capital Social Jun PT'!N71=\"\",\"\",IFERROR(FormatNumberUS('Capital Social Jun PT'!N71*100,2)&\"%\",\"-\"))","v":""},{"$f":"IF('Capital Social Jun PT'!O71=\"\",\"\",IFERROR(FormatNumberUS('Capital Social Jun PT'!O71*100,2)&\"%\",\"-\"))","v":""}]
[null,null,null,null,null,"SHR.AXIA ENERGIA",{"$f":"IF(FormatNumberUS('Capital Social Jun PT'!G72,0)=0,\" \",FormatNumberUS('Capital Social Jun PT'!G72,0))","v":"240"},{"$f":"IF(FormatNumberUS('Capital Social Jun PT'!H72,0)=0,\" \",FormatNumberUS('Capital Social Jun PT'!H72,0))","v":"4,421"},{"$f":"IF(FormatNumberUS('Capital Social Jun PT'!I72,0)=0,\" \",FormatNumberUS('Capital Social Jun PT'!I72,0))","v":"0"},{"$f":"IF(FormatNumberUS('Capital Social Jun PT'!J72,0)=0,\" \",FormatNumberUS('Capital Social Jun PT'!J72,0))","v":"0"},{"$f":"IF(FormatNumberUS('Capital Social Jun PT'!K72,0)=0,\" \",FormatNumberUS('Capital Social Jun PT'!K72,0))","v":"240"},{"$f":"IF(FormatNumberUS('Capital Social Jun PT'!L72,0)=0,\" \",FormatNumberUS('Capital Social Jun PT'!L72,0))","v":"4,421"},{"$f":"IF('Capital Social Jun PT'!M72=\"\",\"\",IFERROR(FormatNumberUS('Capital Social Jun PT'!M72*100,2)&\"%\",\"-\"))","v":"0.00%"},{"$f":"IF('Capital Social Jun PT'!N72=\"\",\"\",IFERROR(FormatNumberUS('Capital Social Jun PT'!N72*100,2)&\"%\",\"-\"))","v":"0.00%"},{"$f":"IF('Capital Social Jun PT'!O72=\"\",\"\",IFERROR(FormatNumberUS('Capital Social Jun PT'!O72*100,2)&\"%\",\"-\"))","v":"0.00%"}]
[]
[null,null,"TELEFÔNICA BRASIL S/A","TELEFÔNICA BRASIL S.A.","Affiliate Telecom","CAP.SOCIAL UNITS",{"$f":"IF(FormatNumberUS('Capital Social Jun PT'!G74,0)=0,\" \",FormatNumberUS('Capital Social Jun PT'!G74,0))","v":"251,307,343"},{"$f":"IF(FormatNumberUS('Capital Social Jun PT'!H74,0)=0,\" \",FormatNumberUS('Capital Social Jun PT'!H74,0))","v":"21,430,204,615"},{"$f":"IF(FormatNumberUS('Capital Social Jun PT'!I74,0)=0,\" \",FormatNumberUS('Capital Social Jun PT'!I74,0))","v":"0"},{"$f":"IF(FormatNumberUS('Capital Social Jun PT'!J74,0)=0,\" \",FormatNumberUS('Capital Social Jun PT'!J74,0))","v":"0"},{"$f":"IF(FormatNumberUS('Capital Social Jun PT'!K74,0)=0,\" \",FormatNumberUS('Capital Social Jun PT'!K74,0))","v":"251,307,343"},{"$f":"IF(FormatNumberUS('Capital Social Jun PT'!L74,0)=0,\" \",FormatNumberUS('Capital Social Jun PT'!L74,0))","v":"21,430,204,615"},{"$f":"IF('Capital Social Jun PT'!M74=\"\",\"\",IFERROR(FormatNumberUS('Capital Social Jun PT'!M74*100,2)&\"%\",\"-\"))","v":""},{"$f":"IF('Capital Social Jun PT'!N74=\"\",\"\",IFERROR(FormatNumberUS('Capital Social Jun PT'!N74*100,2)&\"%\",\"-\"))","v":""},{"$f":"IF('Capital Social Jun PT'!O74=\"\",\"\",IFERROR(FormatNumberUS('Capital Social Jun PT'!O74*100,2)&\"%\",\"-\"))","v":""}]
[null,null,null,null,null,"SHR.AXIA ENERGIA",{"$f":"IF(FormatNumberUS('Capital Social Jun PT'!G75,0)=0,\" \",FormatNumberUS('Capital Social Jun PT'!G75,0))","v":"56"},{"$f":"IF(FormatNumberUS('Capital Social Jun PT'!H75,0)=0,\" \",FormatNumberUS('Capital Social Jun PT'!H75,0))","v":"4,775"},{"$f":"IF(FormatNumberUS('Capital Social Jun PT'!I75,0)=0,\" \",FormatNumberUS('Capital Social Jun PT'!I75,0))","v":"0"},{"$f":"IF(FormatNumberUS('Capital Social Jun PT'!J75,0)=0,\" \",FormatNumberUS('Capital Social Jun PT'!J75,0))","v":"0"},{"$f":"IF(FormatNumberUS('Capital Social Jun PT'!K75,0)=0,\" \",FormatNumberUS('Capital Social Jun PT'!K75,0))","v":"56"},{"$f":"IF(FormatNumberUS('Capital Social Jun PT'!L75,0)=0,\" \",FormatNumberUS('Capital Social Jun PT'!L75,0))","v":"4,775"},{"$f":"IF('Capital Social Jun PT'!M75=\"\",\"\",IFERROR(FormatNumberUS('Capital Social Jun PT'!M75*100,2)&\"%\",\"-\"))","v":"0.00%"},{"$f":"IF('Capital Social Jun PT'!N75=\"\",\"\",IFERROR(FormatNumberUS('Capital Social Jun PT'!N75*100,2)&\"%\",\"-\"))","v":"0.00%"},{"$f":"IF('Capital Social Jun PT'!O75=\"\",\"\",IFERROR(FormatNumberUS('Capital Social Jun PT'!O75*100,2)&\"%\",\"-\"))","v":"0.00%"}]
[]
[null,null,"TIM PARTICIPAÇÕES","TIM PARTICIPAÇÕES S.A.","Affiliate Telecom","CAP.SOCIAL UNITS",{"$f":"IF(FormatNumberUS('Capital Social Jun PT'!G77,0)=0,\" \",FormatNumberUS('Capital Social Jun PT'!G77,0))","v":"203,583,506"},{"$f":"IF(FormatNumberUS('Capital Social Jun PT'!H77,0)=0,\" \",FormatNumberUS('Capital Social Jun PT'!H77,0))","v":"22,836,339,109"},{"$f":"IF(FormatNumberUS('Capital Social Jun PT'!I77,0)=0,\" \",FormatNumberUS('Capital Social Jun PT'!I77,0))","v":"0"},{"$f":"IF(FormatNumberUS('Capital Social Jun PT'!J77,0)=0,\" \",FormatNumberUS('Capital Social Jun PT'!J77,0))","v":"0"},{"$f":"IF(FormatNumberUS('Capital Social Jun PT'!K77,0)=0,\" \",FormatNumberUS('Capital Social Jun PT'!K77,0))","v":"203,583,506"},{"$f":"IF(FormatNumberUS('Capital Social Jun PT'!L77,0)=0,\" \",FormatNumberUS('Capital Social Jun PT'!L77,0))","v":"22,836,339,109"},{"$f":"IF('Capital Social Jun PT'!M77=\"\",\"\",IFERROR(FormatNumberUS('Capital Social Jun PT'!M77*100,2)&\"%\",\"-\"))","v":""},{"$f":"IF('Capital Social Jun PT'!N77=\"\",\"\",IFERROR(FormatNumberUS('Capital Social Jun PT'!N77*100,2)&\"%\",\"-\"))","v":""},{"$f":"IF('Capital Social Jun PT'!O77=\"\",\"\",IFERROR(FormatNumberUS('Capital Social Jun PT'!O77*100,2)&\"%\",\"-\"))","v":""}]
[null,null,null,null,null,"SHR.AXIA ENERGIA",{"$f":"IF(FormatNumberUS('Capital Social Jun PT'!G78,0)=0,\" \",FormatNumberUS('Capital Social Jun PT'!G78,0))","v":"4"},{"$f":"IF(FormatNumberUS('Capital Social Jun PT'!H78,0)=0,\" \",FormatNumberUS('Capital Social Jun PT'!H78,0))","v":"449"},{"$f":"IF(FormatNumberUS('Capital Social Jun PT'!I78,0)=0,\" \",FormatNumberUS('Capital Social Jun PT'!I78,0))","v":"3"},{"$f":"IF(FormatNumberUS('Capital Social Jun PT'!J78,0)=0,\" \",FormatNumberUS('Capital Social Jun PT'!J78,0))","v":"0"},{"$f":"IF(FormatNumberUS('Capital Social Jun PT'!K78,0)=0,\" \",FormatNumberUS('Capital Social Jun PT'!K78,0))","v":"7"},{"$f":"IF(FormatNumberUS('Capital Social Jun PT'!L78,0)=0,\" \",FormatNumberUS('Capital Social Jun PT'!L78,0))","v":"449"},{"$f":"IF('Capital Social Jun PT'!M78=\"\",\"\",IFERROR(FormatNumberUS('Capital Social Jun PT'!M78*100,2)&\"%\",\"-\"))","v":"0.00%"},{"$f":"IF('Capital Social Jun PT'!N78=\"\",\"\",IFERROR(FormatNumberUS('Capital Social Jun PT'!N78*100,2)&\"%\",\"-\"))","v":"0.00%"},{"$f":"IF('Capital Social Jun PT'!O78=\"\",\"\",IFERROR(FormatNumberUS('Capital Social Jun PT'!O78*100,2)&\"%\",\"-\"))","v":"0.00%"}]
[]
[null,null,"TELEBRAS","TELECOMUNICAÇÕES BRASILEIRAS S.A. – TELEBRAS","Affiliate Telecom","CAP.SOCIAL UNITS",{"$f":"IF(FormatNumberUS('Capital Social Jun PT'!G80,0)=0,\" \",FormatNumberUS('Capital Social Jun PT'!G80,0))","v":"75,190,021"},{"$f":"IF(FormatNumberUS('Capital Social Jun PT'!H80,0)=0,\" \",FormatNumberUS('Capital Social Jun PT'!H80,0))","v":"2,791,180,860"},{"$f":"IF(FormatNumberUS('Capital Social Jun PT'!I80,0)=0,\" \",FormatNumberUS('Capital Social Jun PT'!I80,0))","v":"18,407,491"},{"$f":"IF(FormatNumberUS('Capital Social Jun PT'!J80,0)=0,\" \",FormatNumberUS('Capital Social Jun PT'!J80,0))","v":"683,317,226"},{"$f":"IF(FormatNumberUS('Capital Social Jun PT'!K80,0)=0,\" \",FormatNumberUS('Capital Social Jun PT'!K80,0))","v":"93,597,512"},{"$f":"IF(FormatNumberUS('Capital Social Jun PT'!L80,0)=0,\" \",FormatNumberUS('Capital Social Jun PT'!L80,0))","v":"3,474,498,085"},{"$f":"IF('Capital Social Jun PT'!M80=\"\",\"\",IFERROR(FormatNumberUS('Capital Social Jun PT'!M80*100,2)&\"%\",\"-\"))","v":""},{"$f":"IF('Capital Social Jun PT'!N80=\"\",\"\",IFERROR(FormatNumberUS('Capital Social Jun PT'!N80*100,2)&\"%\",\"-\"))","v":""},{"$f":"IF('Capital Social Jun PT'!O80=\"\",\"\",IFERROR(FormatNumberUS('Capital Social Jun PT'!O80*100,2)&\"%\",\"-\"))","v":""}]
[null,null,null,null,null,"SHR.AXIA ENERGIA",{"$f":"IF(FormatNumberUS('Capital Social Jun PT'!G81,0)=0,\" \",FormatNumberUS('Capital Social Jun PT'!G81,0))","v":"0"},{"$f":"IF(FormatNumberUS('Capital Social Jun PT'!H81,0)=0,\" \",FormatNumberUS('Capital Social Jun PT'!H81,0))","v":"0"},{"$f":"IF(FormatNumberUS('Capital Social Jun PT'!I81,0)=0,\" \",FormatNumberUS('Capital Social Jun PT'!I81,0))","v":"1"},{"$f":"IF(FormatNumberUS('Capital Social Jun PT'!J81,0)=0,\" \",FormatNumberUS('Capital Social Jun PT'!J81,0))","v":"37"},{"$f":"IF(FormatNumberUS('Capital Social Jun PT'!K81,0)=0,\" \",FormatNumberUS('Capital Social Jun PT'!K81,0))","v":"1"},{"$f":"IF(FormatNumberUS('Capital Social Jun PT'!L81,0)=0,\" \",FormatNumberUS('Capital Social Jun PT'!L81,0))","v":"37"},{"$f":"IF('Capital Social Jun PT'!M81=\"\",\"\",IFERROR(FormatNumberUS('Capital Social Jun PT'!M81*100,2)&\"%\",\"-\"))","v":"0.00%"},{"$f":"IF('Capital Social Jun PT'!N81=\"\",\"\",IFERROR(FormatNumberUS('Capital Social Jun PT'!N81*100,2)&\"%\",\"-\"))","v":"0.00%"},{"$f":"IF('Capital Social Jun PT'!O81=\"\",\"\",IFERROR(FormatNumberUS('Capital Social Jun PT'!O81*100,2)&\"%\",\"-\"))","v":"0.00%"}]
[]
[null,null,"ALGAR TELECOM","ALGAR TELECOM S.A.","Affiliate Telecom","CAPITAL",{"$f":"IF(FormatNumberUS('Capital Social Jun PT'!G83,0)=0,\" \",FormatNumberUS('Capital Social Jun PT'!G83,0))","v":"295,019,806"},{"$f":"IF(FormatNumberUS('Capital Social Jun PT'!H83,0)=0,\" \",FormatNumberUS('Capital Social Jun PT'!H83,0))","v":"901,831,185"},{"$f":"IF(FormatNumberUS('Capital Social Jun PT'!I83,0)=0,\" \",FormatNumberUS('Capital Social Jun PT'!I83,0))","v":"0"},{"$f":"IF(FormatNumberUS('Capital Social Jun PT'!J83,0)=0,\" \",FormatNumberUS('Capital Social Jun PT'!J83,0))","v":"0"},{"$f":"IF(FormatNumberUS('Capital Social Jun PT'!K83,0)=0,\" \",FormatNumberUS('Capital Social Jun PT'!K83,0))","v":"295,019,806"},{"$f":"IF(FormatNumberUS('Capital Social Jun PT'!L83,0)=0,\" \",FormatNumberUS('Capital Social Jun PT'!L83,0))","v":"901,831,185"},{"$f":"IF('Capital Social Jun PT'!M83=\"\",\"\",IFERROR(FormatNumberUS('Capital Social Jun PT'!M83*100,2)&\"%\",\"-\"))","v":""},{"$f":"IF('Capital Social Jun PT'!N83=\"\",\"\",IFERROR(FormatNumberUS('Capital Social Jun PT'!N83*100,2)&\"%\",\"-\"))","v":""},{"$f":"IF('Capital Social Jun PT'!O83=\"\",\"\",IFERROR(FormatNumberUS('Capital Social Jun PT'!O83*100,2)&\"%\",\"-\"))","v":""}]
[null,null,null,null,null,"SHR.AXIA ENERGIA",{"$f":"IF(FormatNumberUS('Capital Social Jun PT'!G84,0)=0,\" \",FormatNumberUS('Capital Social Jun PT'!G84,0))","v":"869,600"},{"$f":"IF(FormatNumberUS('Capital Social Jun PT'!H84,0)=0,\" \",FormatNumberUS('Capital Social Jun PT'!H84,0))","v":"2,658,236"},{"$f":"IF(FormatNumberUS('Capital Social Jun PT'!I84,0)=0,\" \",FormatNumberUS('Capital Social Jun PT'!I84,0))","v":"0"},{"$f":"IF(FormatNumberUS('Capital Social Jun PT'!J84,0)=0,\" \",FormatNumberUS('Capital Social Jun PT'!J84,0))","v":"0"},{"$f":"IF(FormatNumberUS('Capital Social Jun PT'!K84,0)=0,\" \",FormatNumberUS('Capital Social Jun PT'!K84,0))","v":"869,600"},{"$f":"IF(FormatNumberUS('Capital Social Jun PT'!L84,0)=0,\" \",FormatNumberUS('Capital Social Jun PT'!L84,0))","v":"2,658,236"},{"$f":"IF('Capital Social Jun PT'!M84=\"\",\"\",IFERROR(FormatNumberUS('Capital Social Jun PT'!M84*100,2)&\"%\",\"-\"))","v":"0.29%"},{"$f":"IF('Capital Social Jun PT'!N84=\"\",\"\",IFERROR(FormatNumberUS('Capital Social Jun PT'!N84*100,2)&\"%\",\"-\"))","v":"0.00%"},{"$f":"IF('Capital Social Jun PT'!O84=\"\",\"\",IFERROR(FormatNumberUS('Capital Social Jun PT'!O84*100,2)&\"%\",\"-\"))","v":"0.29%"}]